Cogmind - Beta 17 @@@ ROGUE MODE // 2026.07.21 @ 00:20:13 Player: Cogchaaaan Result: Destroyed by Architect with Modified Sigix Sheargun Performance ------------- Evolutions (9) 4500 Regions Visited (33) 6600 Robots Destroyed (401) 2005 Value Destroyed (22029) 22029 Prototype IDs (376) 7520 Alien Tech Used (2) 400 Bonus (47005) 47005 TOTAL SCORE: 90059 Bonus ------- High Alert Combat Kills 1651 Follower Combat Kills 2822 Prayed to X0-1V1 5000 Major X0-1V1 Interference 11300 Entered Garrisons 600 Network Hubs Disabled 200 Aligned with FarCom 300 Acquired ECA 300 Met Zhirov 300 Met Warlord at Base 500 MAIN.C Attacked Warlord 500 Warlord Defense Kills 934 Built Enhanced Grunts 300 A7 Reached Mainframe 300 Met R17 at Cetus 500 Met R17 at Research 2000 Met Warlord at Research 2000 Destroyed MAIN.C Guards 500 Met MAIN.C 5000 Destroyed MAIN.C Shell 5000 Destroyed MAIN.C 10000 Met Architect 300 Destroyed A8 300 Destroyed A6 400 Friendly Fire -4002 Cogmind --------- Core Integrity 0/1650 Matter 572/1500 Energy 1545/1840 System Corruption 0% Temperature Cool (0) Movement Immobile (Siege) Ox2 Location -1/Access_0 Parts ------- > --- POWER (4) -------- Zero-point Reactor Vortex Chain Reactor > --- PROPULSION (6) --- Biometal Heavy Treads Experimental Biometal Medium Treads Experimental Biometal Medium Treads > --- UTILITY (12) ----- Huge Storage Unit Experimental Matter Compressor Spectral Analyzer Advanced Terrain Scan Processor Experimental Targeting Computer Experimental Core Analyzer Experimental Weapon Cycler Heavy Regenerative Plating Graphene Brace Experimental Thermal Shield > --- WEAPON (4) ------- XL Autogun Subcomponent Hypervelocity Linear Accelerator Hypervelocity Linear Accelerator Graviton Cannon > --- INVENTORY (25) --- Experimental Energy Well (600) Experimental Thermal Shield Advanced Force Field Compact HERF Cannon Helical Railgun Helical Railgun Helical Railgun Chaos Jack (35) Heavy Scimitar of Distortion Peak State ------------ > --- POWER ------------ Light Antimatter Reactor Singularity Reactor > --- PROPULSION ------- Experimental Biometal Heavy Treads Experimental Biometal Heavy Treads Experimental Biometal Medium Treads > --- UTILITY ---------- Experimental Cooling System Huge Storage Unit Advanced Terrain Scan Processor Experimental Targeting Computer Experimental Core Analyzer Experimental Weapon Cycler Advanced Phase Shifter Heavy Regenerative Plating AEGIS Remote Shield Experimental System Purifier X0-1V1's Piety Tracker > --- WEAPON ----------- Improved Heavy Machine Gun XL Autogun Array > --- INVENTORY -------- Zero-point Reactor Vortex Chain Reactor Biometal Heavy Treads Advanced Heavy Siege Treads Electron Diverter Electron Diverter Electron Diverter Experimental Matter Compressor Makeshift Terrain Scanner Heavy Regenerative Plating Graphene Brace Advanced Force Field Experimental Force Field Transdimensional Reconstructor Compact HERF Cannon Helical Railgun Helical Railgun Helical Railgun Heavy Hardcell Cannon Graviton Cannon [Rating: 248] Favorites ----------- Power Quantum Reactor Engine Improved Deuterium Engine Power Core Neutrino Core Reactor Quantum Reactor Propulsion Centrium Heavy Treads Treads Centrium Heavy Treads Leg Aluminum Leg Wheel Wheel Utility X0-1V1's Piety Tracker Device X0-1V1's Piety Tracker Storage Huge Storage Unit Processor Advanced Targeting Computer Hackware Improved Hacking Suite Protection Centrium Medium Armor Plating Weapon Advanced KE Penetrator Energy Gun Gatling Laser Energy Cannon Heavy Phase Cannon Ballistic Gun Advanced KE Penetrator Ballistic Cannon Magnetic Acceleration Cannon Launcher Long-range Missile Launcher Special Weapon Improved Plasma Cutter Impact Weapon Powered Hammer Slashing Weapon Axe Piercing Weapon Spear Special Melee Weapon Chaos Jack Build | -11 -10 -10 -9 -9 -9 -8 -8 -7 -7 -7 -7 -7 -7 -6 -6 -6 -6 -6 -5 -5 -5 -5 -4 -4 -4 -4 -4 -3 -3 -2 -1 -1 -1 ------- Run | Yrd Mat Min Mat Min Exi Min Mat Fac Gar Fac Gar Fac Gar Fac Ext Cet Arc Hub Fac Upp Upp Zhi Pro Fac Upp Upp War Pro Res Res Acc Com Ac0 Slots Evolved 18 | . . . 2 . . . 2 2 . . . . . 2 . . . . 2 . . . . 2 . . . . 2 2 2 . . Power 2 | . . . . . . . . . . . . . . . . . . . 1 . . . . . . . . . 1 . . . . Propulsion 4 | . . . 1 . . . . . . . . . . . . . . . 1 . . . . 1 . . . . 1 . . . . Utility 10 | . . . 1 . . . 2 1 . . . . . 1 . . . . . . . . . 1 . . . . . 2 2 . . Weapon 2 | . . . . . . . . 1 . . . . . 1 . . . . . . . . . . . . . . . . . . . Parts Attached 232 | 8 1 7 19 2 7 . 9 3 16 4 13 5 2 4 8 9 6 4 6 2 1 5 4 7 4 . 5 3 5 3 7 35 18 Power 21 | 1 . 1 3 . . . 1 . 1 . 1 . . 2 1 1 . . 1 . . 1 . . . . 1 . 1 . 1 2 2 Engine 10 | 1 . 1 3 . . . . . 1 . 1 . . 2 1 . . . . . . . . . . . . . . . . . . Core 2 | . . . . . . . 1 . . . . . . . . . . . 1 . . . . . . . . . . . . . . Reactor 9 | . . . . . . . . . . . . . . . . 1 . . . . . 1 . . . . 1 . 1 . 1 2 2 Propulsion 40 | 2 . 2 4 . 2 . 2 . 5 1 4 . . . 1 1 . . 2 . . . . 2 . . . . 3 . 1 6 2 Treads 36 | 2 . . 3 . 2 . 2 . 4 1 4 . . . 1 1 . . 2 . . . . 2 . . . . 3 . 1 6 2 Leg 2 | . . 1 1 . . . . . . . . . . . . . . . . . . . . . . . . . . . . . . Wheel 2 | . . 1 . . . . . . 1 . . . . . . . . . . . . . . . . . . . . . . . . Hover . | . . . . . . . . . . . . . . . . . . . . . . . . . . . . . . . . . . Flight . | . . . . . . . . . . . . . . . . . . . . . . . . . . . . . . . . . . Utility 88 | 2 1 2 2 . 2 . 3 2 5 2 3 3 2 2 2 4 3 3 1 2 1 3 4 4 3 . 4 . . 2 3 15 3 Device 46 | 2 1 . . . 1 . 1 1 2 . 2 1 1 1 1 1 2 2 . 2 1 1 1 3 3 . . . . 2 2 10 2 Storage 9 | . . 2 1 . 1 . . . 1 . . 1 . . . . . . . . . 1 . . . . 1 . . . . . 1 Processor 9 | . . . . . . . 1 . . . . . . . . . . 1 1 . . . 1 . . . 2 . . . 1 2 . Hackware 7 | . . . . . . . . . . 1 . . . 1 . . 1 . . . . 1 1 1 . . 1 . . . . . . Protection 17 | . . . 1 . . . 1 1 2 1 1 1 1 . 1 3 . . . . . . 1 . . . . . . . . 3 . Artifact . | . . . . . . . . . . . . . . . . . . . . . . . . . . . . . . . . . . Weapon 83 | 3 . 2 10 2 3 . 3 1 5 1 5 2 . . 4 3 3 1 2 . . 1 . 1 1 . . 3 1 1 2 12 11 Energy Gun 11 | . . . . . . . 1 . 3 . 2 . . . 2 1 . . . . . . . . . . . . . . . . 2 Energy Cannon 16 | . . . 2 . 1 . . . 1 . . . . . . . . 1 2 . . . . 1 . . . 2 1 1 1 3 . Ballistic Gun 40 | 2 . 2 6 2 2 . 1 1 . . 2 . . . 1 2 3 . . . . . . . . . . 1 . . 1 9 5 Ballistic Cannon 6 | . . . . . . . . . 1 . . . . . 1 . . . . . . . . . . . . . . . . . 4 Launcher 5 | . . . 2 . . . 1 . . . 1 . . . . . . . . . . . . . 1 . . . . . . . . Special Weapon 2 | 1 . . . . . . . . . . . . . . . . . . . . . 1 . . . . . . . . . . . Impact Weapon 1 | . . . . . . . . . . 1 . . . . . . . . . . . . . . . . . . . . . . . Slashing Weapon 1 | . . . . . . . . . . . . 1 . . . . . . . . . . . . . . . . . . . . . Piercing Weapon 1 | . . . . . . . . . . . . 1 . . . . . . . . . . . . . . . . . . . . . Special Melee Weapon . | . . . . . . . . . . . . . . . . . . . . . . . . . . . . . . . . . . Unidentified Prototypes 37 | . 1 . 3 . 2 . 1 1 . . . . . . . 4 . 2 1 . . 4 . 1 1 . 5 1 . . . 7 3 Corrupted Parts 11 | . . . . . . . . . . . . . . . . 2 . . . . 1 . . . . . . . . . . 8 . System Corruption 58 | . . . . . . . . . . . . . . . . 3 . . . . 5 . . . . . . . . . . 50 . Parts Lost 54 | . . 3 1 . . . 1 . 3 . 3 . 1 1 2 3 . . . . . . 5 . . . 1 . . . . 11 19 Power 4 | . . 1 . . . . . . . . . . . 1 . . . . . . . . . . . . . . . . . . 2 Propulsion 11 | . . 1 . . . . . . 2 . . . . . 1 1 . . . . . . . . . . . . . . . 3 3 Utility 20 | . . 1 . . . . . . 1 . 2 . 1 . 1 1 . . . . . . 3 . . . . . . . . 3 7 Weapon 19 | . . . 1 . . . 1 . . . 1 . . . . 1 . . . . . . 2 . . . 1 . . . . 5 7 Highest Loss Streak 6 | . . 3 1 . . . 1 . 1 . 2 . 1 1 1 3 . . . . . . 3 . . . 1 . . . . 4 6 To Critical Strikes 1 | . . . . . . . . . . . . . . . . . . . . . . . . . . . 1 . . . . . . Average Backups 17 | 1 4 6 11 15 13 17 16 14 16 17 16 17 16 17 20 19 19 19 18 19 19 19 16 17 20 20 20 19 20 19 19 19 15 Power 1 | . 1 . . 1 1 1 1 1 1 1 . . . 1 1 1 1 2 1 1 1 1 1 1 1 1 1 1 . 1 3 3 1 Propulsion 2 | . . 1 2 5 3 3 3 3 3 4 3 2 2 2 1 2 2 3 2 2 2 2 2 2 3 3 3 3 3 2 2 1 2 Utility 7 | . 1 . 3 5 5 5 4 4 6 5 5 7 7 7 7 6 6 7 7 8 9 9 8 8 11 11 10 10 10 8 7 8 5 Weapon 5 | 1 2 4 4 4 4 7 8 6 6 6 6 7 7 7 9 9 9 7 6 6 5 5 3 2 3 3 3 4 5 6 5 4 6 Tool/Special . | . . . . . . . . . . . . . . . . . . . . . . . . . . . . . . . . . . Unused Backups 69 | . . 2 10 . . 4 1 . 3 2 5 1 . . 2 9 . 1 3 1 . . . 4 1 . 1 . 2 2 . 12 3 Power 10 | . . . 1 . . . . . . . 1 . . . . 2 . . . . . . . . . . . . . . . 6 . Propulsion 15 | . . . 4 . . 3 . . . . 3 . . . . . . . . . . . . . . . . . 2 . . 3 . Utility 26 | . . 1 2 . . 1 1 . 2 2 . . . . 2 2 . . 3 . . . . 2 1 . 1 . . . . 3 3 Weapon 18 | . . 1 3 . . . . . 1 . 1 1 . . . 5 . 1 . 1 . . . 2 . . . . . 2 . . . Tool/Special . | . . . . . . . . . . . . . . . . . . . . . . . . . . . . . . . . . . Average Slot Usage (%) 85 | . 67 89 96 100 80 100 99 99 99 100 91 78 85 86 87 86 86 87 86 81 79 69 86 89 89 90 88 85 80 82 83 73 73 Engine 2 | . . 4 8 7 9 10 3 . 2 7 7 6 7 6 6 . . . . . . . . . . . . . . . . . . Reactor 4 | . . . . . . . . . . . . . . . . 5 6 6 5 5 5 9 11 10 10 10 9 5 8 8 7 6 5 Treads 16 | . 28 18 26 21 28 30 25 28 27 28 20 12 14 12 12 11 12 12 16 11 11 11 11 15 15 15 15 15 12 12 11 10 11 Device 17 | . 21 18 9 7 9 10 15 20 20 20 19 18 21 22 18 17 17 18 15 20 16 16 16 19 19 20 19 15 13 19 19 19 16 Storage 5 | . . 7 9 7 9 10 8 7 7 7 7 6 7 6 6 6 6 6 5 5 5 5 5 5 5 5 5 5 4 4 3 3 4 Processor 6 | . . . . . . . 8 7 7 7 7 6 7 6 6 6 6 6 5 5 5 5 5 5 5 5 5 10 9 8 10 11 15 Hackware 2 | . . . . . . . . . . . . . . 1 6 6 6 6 5 5 5 5 3 5 5 5 5 5 4 4 3 . . Protection 5 | . . . 8 7 9 10 8 7 7 7 7 6 6 6 5 5 6 6 4 4 5 4 5 4 5 5 4 5 4 4 2 2 3 Energy Gun 3 | . . . . . . . . . 5 7 13 12 13 12 11 2 . . . . . . . . . . . . . . . . 2 Energy Cannon 2 | . . . . 5 . . . . . . . . . . . . . 1 5 11 10 3 6 4 4 5 4 4 3 4 3 2 . Ballistic Gun 15 | . 17 32 30 43 15 30 23 20 13 7 6 3 4 5 12 21 25 22 13 5 8 3 19 20 20 20 20 19 18 16 18 12 8 Peak Build Rating 248 | 6 18 20 42 42 48 37 44 50 55 56 85 86 85 93 97 124 132 137 151 148 151 146 154 162 164 162 176 175 195 204 223 248 245 Average Rating 128 | 4 11 18 31 41 32 36 41 48 51 54 69 83 83 90 95 114 126 130 142 139 141 118 145 157 158 158 161 172 193 201 216 232 223 On Entrance 106 | . 4 17 20 42 40 36 37 44 50 55 56 84 82 83 89 97 124 128 136 150 139 143 146 143 162 158 158 168 172 191 204 222 243 Avg Prop Armor Cover (%) 21 | 33 31 11 18 . . . . . . . . . . . . . . . . . . . . 4 4 . . . . . . . . Naked Turns . | . . . . . . . . . . . . . . . . . . . . . . . . . . . . . . . . . . Heaviest Build 223 | 6 4 14 56 56 64 64 69 71 78 78 77 118 115 123 122 132 134 138 161 161 167 164 165 161 161 161 163 168 185 188 194 223 219 Greatest Support 250 | 40 3 40 69 69 69 66 88 88 88 80 150 150 150 150 150 150 140 140 167 167 140 140 140 177 177 177 177 177 230 210 220 250 240 Greatest Overweight (x) 2 | . 1 1 1 . . . 1 . 1 . . . . . . 2 . . . 1 1 1 1 1 1 . . . . . . 1 1 Average Overweight (x) . | . . . . . . . . . . . . . . . . . . . . . 1 . 1 . . . . . . . . . . Largest Inventory Capacity 25 | 5 5 10 15 15 20 20 20 20 20 20 20 25 25 25 25 25 25 25 25 25 25 25 25 25 25 25 25 25 25 25 25 25 25 Average Capacity 22 | 5 5 7 13 15 16 20 20 20 20 20 20 24 25 25 25 25 25 25 25 25 25 25 25 25 25 25 25 25 25 25 25 25 25 Most Carried 25 | 5 5 10 15 15 20 20 20 20 20 20 20 24 23 24 25 25 25 25 25 25 25 25 25 25 25 25 25 25 25 25 25 25 25 Average Carried 21 | 2 4 6 11 15 16 19 19 17 19 19 19 22 21 22 24 24 24 24 24 24 24 24 21 23 25 25 24 24 24 24 24 24 18 Final Capacity 25 | 5 5 10 15 15 20 20 20 20 20 20 20 25 25 25 25 25 25 25 25 25 25 25 25 25 25 25 25 25 25 25 25 25 25 Final Carried 25 | 5 5 10 15 15 20 20 19 19 20 20 20 22 22 23 25 24 25 25 25 25 24 25 18 25 25 25 25 25 25 25 25 24 9 Class Distribution -------------------- 48% | Scavenger-Tank 9% | Commander-Tank 8% | Scavenger-Executioner 6% | Scavenger-Skirmisher 5% | Skirmisher 5% | Scavenger-Mutant 4% | Generator-Tank Dominant Class ---------------- Mutant | -10/Materials Gunner | -10/Mines Tank | -9/Materials Commander-Executioner | -9/Mines Commander-Mutant | -9/Exiles Skirmisher | -8/Mines Skirmisher | -8/Materials Skirmisher | -7/Factory Scavenger-Skirmisher | -7/Garrison Scavenger-Skirmisher | -7/Factory Scavenger-Tank | -7/Garrison Scavenger-Tank | -7/Factory Scavenger-Tank | -7/Garrison Scavenger-Tank | -6/Factory Commander-Tank | -6/Extension Commander-Tank | -6/Cetus Commander-Tank | -6/Archives Commander-Tank | -6/Hub_04(d) Scavenger-Tank | -5/Factory Scavenger-Tank | -5/Upper Caves Scavenger-Tank | -5/Upper Caves Scavenger-Mutant | -5/Zhirov Scavenger-Tank | -4/Proximity Caves Scavenger-Tank | -4/Factory Scavenger-Tank | -4/Upper Caves Scavenger-Tank | -4/Upper Caves Scavenger-Tank | -4/Warlord Scavenger-Tank | -3/Proximity Caves Scavenger-Tank | -3/Research Scavenger-Tank | -2/Research Scavenger-Executioner | -1/Access Scavenger-Executioner | -1/Command Generator-Tank | -1/Access_0 Resources | -11 -10 -10 -9 -9 -9 -8 -8 -7 -7 -7 -7 -7 -7 -6 -6 -6 -6 -6 -5 -5 -5 -5 -4 -4 -4 -4 -4 -3 -3 -2 -1 -1 -1 ----------- Run | Yrd Mat Min Mat Min Exi Min Mat Fac Gar Fac Gar Fac Gar Fac Ext Cet Arc Hub Fac Upp Upp Zhi Pro Fac Upp Upp War Pro Res Res Acc Com Ac0 Matter Collected 21690 | 302 71 204 586 44 300 447 374 . 1128 294 1514 294 840 . 704 497 743 422 694 173 518 117 1123 751 185 318 302 713 392 352 432 4152 2704 Remotely 9928 | . . . . . . . . . 102 127 642 175 537 . 468 277 598 210 511 130 163 . 734 598 123 229 302 58 203 132 260 3349 . Salvage Created 21814 | 110 123 224 684 17 . 170 477 . 892 334 1453 192 904 20 679 389 700 1147 1167 260 677 . 1158 935 300 180 477 365 734 496 557 4632 1361 Parts 974 | 13 14 20 44 2 . 6 22 . 50 22 53 13 41 1 32 18 29 41 58 8 12 . 39 57 8 3 28 20 40 22 28 178 52 Haulers Intercepted 11 | . 1 . 3 . . . . . . . . . . . . . . 1 . . . . . 1 1 . . . 1 3 . . . Recyclers Shooed 6 | . . . 1 . . . 1 . . . . . . . . . . 1 2 . . . . . . . . . . . . 1 . Parts Field Recycled . | . . . . . . . . . . . . . . . . . . . . . . . . . . . . . . . . . . Retrieved Matter . | . . . . . . . . . . . . . . . . . . . . . . . . . . . . . . . . . . Parts Self-Destructed 79 | . . . . . . . . . . . . . . . . . . . . 2 11 . 40 . 7 4 . 15 . . . . . Prevented 28 | . . . . . . . . . . . . . . . . . . . . 6 11 . 2 . 4 . . 5 . . . . . Parts Restored . | . . . . . . . . . . . . . . . . . . . . . . . . . . . . . . . . . . Kills | -11 -10 -10 -9 -9 -9 -8 -8 -7 -7 -7 -7 -7 -7 -6 -6 -6 -6 -6 -5 -5 -5 -5 -4 -4 -4 -4 -4 -3 -3 -2 -1 -1 -1 ------- Run | Yrd Mat Min Mat Min Exi Min Mat Fac Gar Fac Gar Fac Gar Fac Ext Cet Arc Hub Fac Upp Upp Zhi Pro Fac Upp Upp War Pro Res Res Acc Com Ac0 Combat Hostiles Destroyed 321 | . 5 10 14 1 . 3 11 . 22 5 27 1 24 1 10 4 6 8 19 4 11 . 18 13 6 1 11 10 8 2 7 41 18 Guns 215 | . 5 10 7 1 . 1 6 . 16 4 23 1 20 . 8 4 6 8 6 . . . 15 10 2 1 11 1 8 2 4 24 11 Cannons 33 | . . . . . . . . . 1 1 . . . . . . . . 3 3 6 . 1 . . . . 2 . . . 10 6 AOE 56 | . . . 7 . . 2 5 . 5 . 4 . 4 1 . . . . 8 . 2 . 2 3 4 . . 7 . . 2 . . Classes Destroyed 20 | 2 2 1 3 . . . . . 2 2 1 1 2 . 1 . . . 2 . . . 1 . . . . . . . . . . Worker 13 | . . . . . . . . . . . . 3 . . . . . 5 2 . . . . 1 . . . . . 1 . 1 . Builder 11 | . . . 1 . . . . . . . . 1 . . 2 . . 2 1 . . . . 1 . . . . 2 1 . . . Tunneler 6 | 3 . . . . . . . . . 1 . . . . . . . 1 . . . . . . . . . . . 1 . . . Hauler 11 | . 1 . 3 . . . . . . . . . . . . . . 1 . . . . . 1 1 . . . 1 3 . . . Recycler 9 | 1 . . 2 . . 1 . . . 1 . 1 . . . . . 1 1 . . . . . . . . . . . . 1 . Mechanic 2 | . . . . . . . . . . . . . . . . . . . 1 . . . . . . . . . . . . 1 . Operator 12 | . . . . . . . . . . 1 . . . . . . 8 . . . . . . . . . . . . 2 . 1 . Watcher 8 | . . . 2 . . . 1 . . . 1 . . . 1 1 . . 1 . . . . 1 . . . . . . . . . Swarmer 55 | . 5 7 6 1 . 2 . . 3 . 6 . 3 1 . . . . 4 . 1 . . 3 . . 6 5 . 2 . . . Saboteur 2 | . . . . . . . . . . . . . . . . . . . . . . . 1 . . . 1 . . . . . . Grunt 107 | . . 3 4 . . 2 7 . 9 . 9 . 11 . 2 . 2 6 4 3 7 . 11 5 5 1 4 . 4 . . 8 . Brawler 11 | . . . . . . . . . . . 1 . . . . . . 2 1 1 . . 3 . . . . . . . . 3 . Duelist 6 | . . . . . . . . . . 2 . . . . . . . . . . 1 . 1 . . . . . . . . 2 . Sentry 45 | . . . 4 . . . 4 . 6 1 8 . 2 . 6 . 4 . 2 . 2 . 1 1 1 . . . 1 . 2 . . Demolisher 1 | . . . . . . . . . . . . . 1 . . . . . . . . . . . . . . . . . . . . Specialist 6 | . . . . . . . . . . . . . 1 . . . . . . . . . . 4 . . . . . . . 1 . Hunter 19 | . . . . . . . . . 1 . . . 1 . . . . . 2 . . . . . . . . 2 . . 2 11 . Programmer 35 | . . . . . . . . . 3 2 3 1 5 . . . . . 5 . . . . . . . . . 3 . 3 10 . Heavy 3 | . . . . . . . . . . . . . . . . . . . 1 . . . . . . 1 . . . . . 1 . Behemoth 3 | . . . . . . . . . . . . . . . 2 . . . . . . . 1 . . . . . . . . . . Cetus Guard 4 | . . . . . . . . . . . . . . . . 4 . . . . . . . . . . . . . . . . . M Guard 2 | . . . . . . . . . . . . . . . . . . . . . . . . . . . . . . . . 2 . Enhanced Grunt 10 | . . . . . . . . . . . . . . . . . . . . . . . . . . . . . . . . . 10 Enhanced Sentry 1 | . . . . . . . . . . . . . . . . . . . . . . . . . . . . . . . . . 1 Enhanced Hunter 3 | . . . . . . . . . . . . . . . . . . . . . . . . . . . . . . . . . 3 Lightning 2 | . . . . . . . . . . . . . . . . . . 2 . . . . . . . . . . . . . . . Combat Programmer 2 | . . . . . . . . . . . . . . . . . . . . . . . . . . . . . . . . 2 . Thug 6 | . . . . . . . . . . . . . . . . 1 . . . . . . . . . . . 3 . . . . 2 Savage 1 | . . . . . . . . . . . . . . . . . . 1 . . . . . . . . . . . . . . . Guerrilla 1 | . . . . . . . . . . . . . . . . . . 1 . . . . . . . . . . . . . . . Best Kill Streak 13 | 2 3 5 7 1 . 2 3 . 4 2 5 2 9 1 3 4 6 6 7 4 6 . 13 3 6 1 11 5 3 2 2 5 5 Combat Bots Only 13 | . 3 5 6 1 . 2 3 . 4 2 5 1 9 1 2 3 2 2 4 4 6 . 13 3 5 1 11 5 3 2 2 5 5 Max Kills in Single Turn 8 | 1 1 1 3 1 . 1 2 . 2 2 2 2 2 1 2 1 2 8 4 2 2 . 2 3 2 1 2 3 3 1 1 3 1 Gunslinging 1 | . . . . . . . . . . . 1 . 1 . . . 1 . . . . . 1 . . . 1 . 1 . . 1 . Exploded 4 | . . . 2 . . 1 2 . 2 . 1 . 2 1 . . . . 4 . 2 . 1 3 2 . . 3 . . 1 . . Melee . | . . . . . . . . . . . . . . . . . . . . . . . . . . . . . . . . . . Uniques/NPCs Destroyed 4 | . . . . . . . . . . . . . . . . . . . . . . . . . . . . . . . . 2 2 MAIN.C Shell (-1/Command) MAIN.C (-1/Command) A8 (-1/Access_0) A6 (-1/Access_0) Combat | -11 -10 -10 -9 -9 -9 -8 -8 -7 -7 -7 -7 -7 -7 -6 -6 -6 -6 -6 -5 -5 -5 -5 -4 -4 -4 -4 -4 -3 -3 -2 -1 -1 -1 -------- Run | Yrd Mat Min Mat Min Exi Min Mat Fac Gar Fac Gar Fac Gar Fac Ext Cet Arc Hub Fac Upp Upp Zhi Pro Fac Upp Upp War Pro Res Res Acc Com Ac0 Hostile Shots Fired 2529 | . 30 62 140 1 . 4 22 . 215 5 199 4 83 9 69 53 11 52 32 9 34 . 67 30 26 10 63 61 12 5 21 372 828 Missed 782 | . 11 8 50 1 . 1 8 . 83 . 80 2 22 5 30 17 2 29 13 2 19 . 28 6 4 3 16 14 4 . 6 93 225 Hits 1747 | . 19 54 90 . . 3 14 . 132 5 119 2 61 4 39 36 9 23 19 7 15 . 39 24 22 7 47 47 8 5 15 279 603 Melee 10 | . . . . . . . . . . 1 . . . . . . . . . . . . 1 . . . . . . . . 3 5 Projectile 1737 | . 19 54 90 . . 3 14 . 132 4 119 2 61 4 39 36 9 23 19 7 15 . 38 24 22 7 47 47 8 5 15 276 598 AOE 30 | . . . . . . . . . . . . . . . . . . . 1 . . . . . . . . . . 1 . 28 . Critical Strikes 66 | . . . 4 . . . 1 . . . 2 . 3 . . 2 . 1 . 1 . . 4 . 2 2 2 1 . . . 11 30 Actively Blocked 35 | . . . . . . . . . . . . . . . . . . . . . . . . . . . . . . . . 9 26 Part Disruptions 15 | . . . . . . . . . . . . . . . . . . . . . . . . 2 . . . . . . . 6 7 Damage Taken 29483 | . 164 503 965 . . 32 418 . 1256 78 1128 42 827 541 403 838 175 405 421 134 361 . 1020 315 339 97 693 676 243 202 257 6585 10365 Core 2525 | . 62 92 102 . . . . . 123 12 78 . 31 . 60 42 . 22 . . 20 . 202 . 18 . 35 65 . 20 . 246 1295 Absorbed by Shields 14214 | . . . . . . . . . . . . . . . 10 220 . . . . . . 121 118 126 37 258 253 88 72 92 2976 9843 Reduced by Siege Mode 1681 | . . . . . . . . . . . 25 . 87 . . 60 10 . . 10 6 . 66 15 31 . . 10 6 . 21 940 394 Ignored by Resistances 1361 | . . . . . . . . . 59 14 23 11 84 . . . . 28 18 . 2 . . 33 . . . . 5 . 15 544 525 Regen/Repaired (Parts) 2322 | . . . . . . . . . . . . . . . . . . . . . . . . . . . 285 . 121 90 . 1001 825 Core Remaining (%) 87 | 100 . 38 . . . 100 100 . . . . . 89 . . . . 86 . . . . 78 . . . . 90 100 98 . . . Volleys Fired 1150 | 11 24 38 60 1 . 6 24 1 66 12 81 8 38 3 21 26 26 33 50 7 23 1 44 43 10 9 15 26 33 20 27 193 170 Largest 6 | 2 2 3 5 6 . 3 3 1 3 3 3 3 3 3 4 4 4 4 4 1 5 1 5 4 4 4 4 4 4 5 6 6 5 Hottest 318 | 40 100 60 154 132 . 63 63 36 131 188 190 190 190 190 220 240 140 140 195 70 230 90 230 140 140 140 140 140 140 260 295 219 318 Shots Fired 2888 | 22 42 79 169 6 . 16 62 1 151 30 197 22 101 5 82 91 104 88 78 7 35 1 125 109 22 33 48 29 81 68 61 353 570 Gun 2376 | 22 41 79 161 6 . 14 57 . 136 22 187 22 96 3 82 91 104 73 33 . 12 . 101 88 16 32 44 4 64 60 41 242 443 Cannon 455 | . . . 1 . . . . . 8 8 6 . . 2 . . . 15 40 7 23 1 19 20 1 1 4 17 17 8 20 110 127 Launcher 56 | . . . 7 . . 2 5 1 7 . 4 . 5 . . . . . 5 . . . 5 1 5 . . 8 . . . 1 . Special 1 | . 1 . . . . . . . . . . . . . . . . . . . . . . . . . . . . . . . . Kinetic 2138 | 22 41 79 161 6 . 14 57 . 114 18 98 5 33 3 42 90 104 73 33 . 12 . 101 88 16 32 44 4 64 60 41 242 441 Thermal 559 | . 1 . 1 . . . . . 25 12 95 17 63 2 40 1 . 15 30 . 3 1 19 20 1 1 4 11 17 8 18 30 124 Explosive 56 | . . . 7 . . 2 5 1 7 . 4 . 5 . . . . . 5 . . . 5 1 5 . . 8 . . . 1 . Electromagnetic 109 | . . . . . . . . . 5 . . . . . . . . . 10 7 20 . . . . . . 6 . . 2 54 5 Entropic 26 | . . . . . . . . . . . . . . . . . . . . . . . . . . . . . . . . 26 . Robot Hit Streak 38 | 18 4 8 12 3 . 6 10 . 20 27 28 16 38 3 27 14 26 10 10 16 11 . 35 19 6 16 22 11 15 10 22 30 18 Robot Miss Streak 5 | 1 4 5 4 . . 4 2 . 4 2 4 2 3 3 3 2 2 5 2 . 1 . 3 3 2 1 2 1 2 2 2 4 5 Penetration Max 2 | . . . . . . . . . . . 1 . 1 . 1 1 1 1 1 1 1 . 1 . . . 1 . 1 1 . 2 . Secondary Targets 38 | . . 2 . . . . . . 2 . 5 . 6 . . 1 2 1 . . . . 4 1 . . 6 . 1 2 . 3 2 Max Gunslinging Chain 1 | . . 1 . . . . . . 1 . 1 . 1 . . 1 1 1 . . . . 1 1 . . 1 . 1 1 . 1 1 Shots Hit Robots 1976 | 21 23 49 107 1 . 8 41 . 110 20 154 17 80 2 54 71 81 46 42 7 31 . 85 45 12 24 30 12 46 41 27 247 442 Core Hits 1139 | 9 13 21 49 1 . 5 26 . 55 19 96 11 70 1 32 23 32 37 30 4 11 . 43 32 18 7 20 19 23 17 11 153 251 Critical Kills 47 | . . . . . . . . . . . 1 . . . 1 3 4 5 2 . . . 7 6 . 1 . . 4 4 3 6 . Critical Parts Destroyed 70 | . . . 1 . . . . . . . . . . . . 6 8 9 3 . . . 9 4 2 1 3 . 5 7 5 7 . Critical Strikes 145 | . . . 1 . . . . . . . 1 . . . 1 12 13 16 7 2 1 . 18 12 2 2 3 . 10 12 8 17 7 Meltdown 1 | . . . . . . . . . . . . . . . . . . . . . . . . . . . . . . . . 1 . Destroy 130 | . . . 1 . . . . . . . 1 . . . 1 12 13 16 5 . . . 18 12 2 2 3 . 10 12 8 13 1 Blast 7 | . . . . . . . . . . . . . . . . . . . . . . . . . . . . . . . . 1 6 Corrupt 6 | . . . . . . . . . . . . . . . . . . . 2 2 1 . . . . . . . . . . 1 . Sunder 1 | . . . . . . . . . . . . . . . . . . . . . . . . . . . . . . . . 1 . Melee Attacks 37 | . . . . . . . . . . 3 2 18 8 5 . . . . . . . . . . . . . . . . . 1 . Impact 6 | . . . . . . . . . . 3 2 1 . . . . . . . . . . . . . . . . . . . . . Slashing 22 | . . . . . . . . . . . . 9 8 5 . . . . . . . . . . . . . . . . . . . Piercing 9 | . . . . . . . . . . . . 8 . . . . . . . . . . . . . . . . . . . 1 . Sneak Attacks 3 | . . . . . . . . . . . . 3 . . . . . . . . . . . . . . . . . . . . . Combat Hostiles . | . . . . . . . . . . . . . . . . . . . . . . . . . . . . . . . . . . Follow-up Attacks . | . . . . . . . . . . . . . . . . . . . . . . . . . . . . . . . . . . Damage Inflicted 64553 | 148 193 380 1935 12 . 185 1071 . 2813 520 3939 590 3049 34 1548 1776 2130 2265 2615 395 1594 . 3003 1782 1472 668 872 1542 1090 1078 898 10445 14511 Guns 44354 | 148 193 380 1141 12 . 116 515 . 2007 427 3495 421 2265 34 1548 1776 2130 1613 652 . 307 . 2166 1395 229 668 872 36 1012 863 515 8035 9383 Cannons 10667 | . . . . . . . . . 115 93 . . . . . . . 66 799 395 1122 . 175 35 . . . 198 78 131 128 2304 5028 Explosions 9157 | . . . 786 . . 69 549 . 691 . 444 . 784 . . . . 568 1097 . 165 . 662 330 1243 . . 1308 . . 255 106 100 Melee 169 | . . . . . . . . . . . . 169 . . . . . . . . . . . . . . . . . . . . . Ramming 206 | . . . 8 . . . 7 . . . . . . . . . . 18 67 . . . . 22 . . . . . 84 . . . Kinetic 38999 | 148 193 380 1141 12 . 116 515 . 1375 249 1392 71 469 . 588 1776 2130 1613 652 . 307 . 2166 1395 229 668 872 36 1012 863 515 8212 9904 Thermal 12434 | . . . . . . . . . 632 271 2103 350 1796 34 960 . . 66 287 . 278 . 175 35 . . . . 78 131 239 590 4409 Explosive 7985 | . . . 786 . . 69 549 . 691 . 444 . 784 . . . . . 1097 . . . 662 188 1243 . . 1308 . . 58 106 . Electromagnetic 4543 | . . . . . . . . . 115 . . . . . . . . 568 512 395 1009 . . 142 . . . 198 . . 86 1411 107 Impact . | . . . . . . . . . . . . . . . . . . . . . . . . . . . . . . . . . . Slashing . | . . . . . . . . . . . . . . . . . . . . . . . . . . . . . . . . . . Piercing 169 | . . . . . . . . . . . . 169 . . . . . . . . . . . . . . . . . . . . . Entropic 217 | . . . . . . . . . . . . . . . . . . . . . . . . . . . . . . . . 126 91 Highest Corruption 51 | . . . 5 5 5 5 . . 13 15 16 1 2 . . 3 . . 1 1 6 6 9 3 9 4 6 6 1 . . 51 . Average Corruption 10 | . . . 5 5 5 5 . . 11 13 15 1 1 . . 2 . . 1 1 3 6 6 2 5 4 5 6 1 . . 34 . Corruption Purged 50 | . . . . . . . . . . . . . . . . . . . . . . . . . . . . . . . . 50 . Corruption Blocked . | . . . . . . . . . . . . . . . . . . . . . . . . . . . . . . . . . . Effects 393 | . . . 2 3 17 10 . . 47 34 33 7 11 . . 3 . . 1 4 10 12 26 7 3 6 13 9 1 . . 134 . Message Errors 91 | . . . 1 1 3 1 . . 16 5 7 4 3 . . 1 . . 1 1 2 5 8 1 1 2 3 1 . . . 24 . Matter Fused 85 | . . . . 2 6 3 . . 8 6 4 1 3 . . 1 . . . 2 1 4 7 2 . 1 1 3 . . . 30 . Heat Flow Errors 40 | . . . . . . 1 . . 4 1 5 . 1 . . 1 . . . . 4 1 4 . . 1 2 3 1 . . 11 . Energy Discharges 44 | . . . 1 . . 2 . . 4 5 4 1 . . . . . . . 1 . . 6 2 1 . 2 . . . . 15 . Parts Rejected 2 | . . . . . . . . . . 1 . . . . . . . . . . . . . . . . 1 . . . . . . Parts Fused 6 | . . . . . 2 1 . . . . 1 . . . . . . . . . . 1 . . . . . . . . . 1 . Data Loss (minor) 38 | . . . . . 4 . . . 5 4 5 . 2 . . . . . . . 1 1 . 2 . 1 1 1 . . . 11 . Data Loss (major) 10 | . . . . . 2 . . . 2 1 . . . . . . . . . . 2 . . . . . 1 . . . . 2 . Misfires 21 | . . . . . . 2 . . 3 4 3 1 1 . . . . . . . . . 1 . . . 1 . . . . 5 . Alerts 16 | . . . . . . . . . 1 5 2 . 1 . . . . . . . . . . . 1 1 . 1 . . . 4 . Misdirections 2 | . . . . . . . . . . . . . . . . . . . . . . . . . . . . . . . . 2 . Weapon Failures 38 | . . . . . . . . . 4 2 2 . . . . . . . . . . . . . . . 1 . . . . 29 . Overload Shots 2 | . . . . . . . . . . . . . . . . 1 . . . . . . . . . . . . . . . 1 . Effects 1 | . . . . . . . . . . . . . . . . . . . . . . . . . . . . . . . . 1 . Energy Bleed 1 | . . . . . . . . . . . . . . . . . . . . . . . . . . . . . . . . 1 . Overflow Damage 614 | . . . . . . . . . 5 14 26 46 . . . . . 6 48 22 41 . 53 . 42 . . 82 . 20 51 111 47 Projectiles 229 | . . . . . . . . . . 14 . . . . . . . 3 4 22 28 . . . . . . . . . . 111 47 Explosions 306 | . . . . . . . . . 5 . 26 . . . . . . . 34 . 13 . 53 . 42 . . 82 . . 51 . . Melee 79 | . . . . . . . . . . . . 46 . . . . . 3 10 . . . . . . . . . . 20 . . . Knockbacks 32 | . . . . . . . . . . 1 . . . . . . . . . . . . . 1 . . . . . . . 1 29 Impact 1 | . . . . . . . . . . . . . . . . . . . . . . . . 1 . . . . . . . . . Kinetic 31 | . . . . . . . . . . 1 . . . . . . . . . . . . . . . . . . . . . 1 29 Secondary . | . . . . . . . . . . . . . . . . . . . . . . . . . . . . . . . . . . Self-Inflicted Damage 244 | . . . . . . 7 . . . . . . . . . . . 74 29 . . . 8 23 . . . . . . 24 . 79 Shots 7 | . . . . . . 1 . . . . . . . . . . . 1 1 . . . 1 1 . . . . . . 1 . 1 Rammed 11 | . . . 2 . . . 1 . . . . . . . . . . 1 4 . . . . 2 . . . . . 1 . . . Targets Rammed 13 | . . . 2 . . 1 1 . . . . . . . . . . 1 4 . . . . 2 . . . . . 2 . . . Kicked . | . . . . . . . . . . . . . . . . . . . . . . . . . . . . . . . . . . Crushed 2 | . . . . . . 1 . . . . . . . . . . . . . . . . . . . . . . . 1 . . . Highest Temperature 576 | . . 36 207 81 . 129 36 . 133 210 258 126 128 30 39 243 39 2 165 28 306 206 563 144 72 186 260 219 344 252 172 413 576 Average Temperature 81 | . . 14 70 42 . 34 16 . 31 40 74 40 19 30 9 66 21 1 55 22 104 110 152 46 35 64 83 87 102 62 57 117 79 Received Heat Transfer 2917 | . . 123 408 . . . 135 . 357 . 285 . 129 . 153 91 81 141 87 81 66 . 189 50 143 47 66 42 27 6 . 188 22 Effects 25 | . . . . . . . . . . . 1 . . . . . . . . . 1 . 10 . . . . . 1 . . 4 8 Shutdowns 6 | . . . . . . . . . . . . . . . . . . . . . . . 4 . . . . . . . . 1 1 Energy Bleed 5 | . . . . . . . . . . . 1 . . . . . . . . . 1 . . . . . . . 1 . . 1 1 Interference 8 | . . . . . . . . . . . . . . . . . . . . . . . 2 . . . . . . . . 1 5 Matter Decay 1 | . . . . . . . . . . . . . . . . . . . . . . . . . . . . . . . . . 1 Short Circuit 1 | . . . . . . . . . . . . . . . . . . . . . . . 1 . . . . . . . . . . Damage (minor) 2 | . . . . . . . . . . . . . . . . . . . . . . . 1 . . . . . . . . 1 . Damage (major) 1 | . . . . . . . . . . . . . . . . . . . . . . . 1 . . . . . . . . . . Damage (core) 1 | . . . . . . . . . . . . . . . . . . . . . . . 1 . . . . . . . . . . Siege Activations 80 | . . . . . . . . . . . 2 . 10 . 4 1 2 2 2 1 3 . 3 7 1 2 . 3 3 1 1 12 20 Total Turns 1040 | . . . . . . . . . . . 61 . 125 . 8 24 75 15 9 11 28 . 108 62 15 31 . 22 36 1 6 197 206 Longest Duration 83 | . . . . . . . . . . . 37 . 61 . 3 24 70 10 8 11 17 . 83 25 15 26 . 8 24 1 6 41 58 Martial Activations . | . . . . . . . . . . . . . . . . . . . . . . . . . . . . . . . . . . Shielding Activations . | . . . . . . . . . . . . . . . . . . . . . . . . . . . . . . . . . . Robots Disrupted . | . . . . . . . . . . . . . . . . . . . . . . . . . . . . . . . . . . Combat Hostiles . | . . . . . . . . . . . . . . . . . . . . . . . . . . . . . . . . . . Robots Corrupted 18 | . . . . . . . . . . . . . . . . . . . 3 1 3 . . . . . . . . 1 1 8 1 Combat Hostiles 14 | . . . . . . . . . . . . . . . . . . . 2 1 3 . . . . . . . . . 1 6 1 Parts Fried 40 | . . . . . . . . . 1 . . . . . . . . 2 8 3 4 . . 1 . . . 2 . 1 . 13 5 Impact Corruptions 3 | . . . . . . . . . . . . . . . . . . 1 1 . . . . . . . . . . 1 . . . Robots Melted 3 | . . . . . . . . . . . . . . . 2 . . . . . . . . . . . . . . . . 1 . Combat Hostiles 3 | . . . . . . . . . . . . . . . 2 . . . . . . . . . . . . . . . . 1 . Parts Melted 35 | . . 1 . . . 1 . . 2 . 12 1 5 . 6 1 . . 1 . . . . . . . . . 1 1 . 1 2 Heat Transferred 17048 | . . . . . . . . . 1293 575 4675 750 2939 75 2150 . . 100 335 . 261 . 185 37 . . . . 74 111 137 481 2870 Parts Sabotaged . | . . . . . . . . . . . . . . . . . . . . . . . . . . . . . . . . . . Parts Stolen . | . . . . . . . . . . . . . . . . . . . . . . . . . . . . . . . . . . Parts Stripped . | . . . . . . . . . . . . . . . . . . . . . . . . . . . . . . . . . . Power Chain Reactions 3 | . . . . . . . . . . . . . . . . . . . . . 1 . . . . . . . . . 1 . 1 Alert | -11 -10 -10 -9 -9 -9 -8 -8 -7 -7 -7 -7 -7 -7 -6 -6 -6 -6 -6 -5 -5 -5 -5 -4 -4 -4 -4 -4 -3 -3 -2 -1 -1 -1 ------- Run | Yrd Mat Min Mat Min Exi Min Mat Fac Gar Fac Gar Fac Gar Fac Ext Cet Arc Hub Fac Upp Upp Zhi Pro Fac Upp Upp War Pro Res Res Acc Com Ac0 Maximum Alert Level 4 | . . . . . . . 1 . 2 1 3 2 4 2 1 1 1 4 3 . . . . 2 . . . . . . 1 2 . Low Security (%) 43 | 100 100 100 100 100 . 100 93 100 31 1 2 . . . 75 19 27 46 . . . . . 70 . . . . 100 100 99 13 . Level 1 17 | . . . . . . . 6 . 24 98 17 40 4 . 24 80 72 13 . . . . . 11 . . . . . . . 14 . Level 2 28 | . . . . . . . . . 44 . 31 59 27 100 . . . 7 70 . . . . 18 . . . . . . . 72 . Level 3 9 | . . . . . . . . . . . 49 . 61 . . . . 15 28 . . . . . . . . . . . . . . Level 4 . | . . . . . . . . . . . . . 6 . . . . 16 . . . . . . . . . . . . . . . Level 5 . | . . . . . . . . . . . . . . . . . . . . . . . . . . . . . . . . . . High Security . | . . . . . . . . . . . . . . . . . . . . . . . . . . . . . . . . . . Max Security . | . . . . . . . . . . . . . . . . . . . . . . . . . . . . . . . . . . Peak Influence 1224 | 10 106 120 186 95 . 137 230 97 681 362 1086 569 1118 586 345 305 353 1224 958 . . . . 525 . . . . 116 51 191 362 . Initial 586 | . . 37 5 58 . . . 97 . 357 149 569 237 586 227 190 60 105 576 . . . . 126 . . . . 73 51 5 64 . Average 300 | 2 23 48 100 39 . 58 89 48 338 254 686 418 776 520 111 235 236 469 590 . . . . 221 . . . . 21 9 91 195 . Influence Increases 14231 | 20 180 230 556 95 . 202 526 7 711 182 1007 168 951 87 996 350 483 1615 936 90 362 . 420 1009 150 46 220 335 238 122 402 1207 328 Destroy 0b10 Robot/C 7800 | . 100 200 320 60 . 120 300 . 440 100 540 60 520 20 480 160 140 700 480 80 300 . 360 380 140 40 220 300 160 40 140 860 40 Destroy 0b10 Robot/NC 445 | 20 5 . 45 . . 5 10 . . 15 20 25 . . 30 10 40 75 40 . . . . 20 5 . . . 15 40 . 25 . Destroy Leader 1036 | . 22 30 82 10 . 30 74 . 30 30 40 10 60 10 36 . 10 144 94 10 20 . 30 74 . . . 20 22 6 50 92 . Allied During Kill 1628 | . . . 19 25 . 29 50 . . . 8 10 55 . 425 148 190 377 52 . 27 . . 71 5 6 . 15 . . . 116 . Successful Hack 257 | . 7 . 8 . . . . . 14 28 14 52 16 36 8 . . 7 . . . . . 5 . . . . . . 44 18 . Disable Machine 675 | . . . 15 . . . 15 . 15 . 45 . . . . 15 90 150 90 . . . . 120 . . . . . 15 15 60 30 Anti-Garrison Action 650 | . . . . . . . . . 200 . 200 . 250 . . . . . . . . . . . . . . . . . . . . Destroy Structure 1301 | . 1 . 52 . . 18 32 7 12 9 65 11 50 6 17 17 13 162 180 . . . . 170 . . . . 26 21 138 36 258 Partial Spotted 30 | . . . . . . . . . . . . . . . . . . . . . . . . . . . . . 15 . 15 . . Lose Combat Pursuer 255 | . 45 . 15 . . . 45 . . . 75 . . 15 . . . . . . 15 . 30 15 . . . . . . . . . Miscellaneous 154 | . . . . . . . . . . . . . . . . . . . . . . . . 154 . . . . . . . . . Influence Decreases 14093 | 20 84 312 418 182 65 202 312 221 30 650 134 915 172 740 1120 539 334 740 1166 661 362 375 220 704 338 211 174 424 255 204 312 652 845 Entered New Map 5404 | . . 59 9 94 65 . . 117 . 324 64 517 102 532 238 151 92 196 600 351 72 375 . 74 188 61 152 198 36 41 5 36 655 Time Decay 6874 | 20 84 233 399 88 . 182 182 104 . 326 . 398 . 198 397 318 222 334 526 310 270 . 180 510 150 150 12 206 219 163 307 386 . Lost Part 520 | . . 20 10 . . . 10 . 30 . 30 . 10 10 20 30 . . . . . . 40 . . . 10 . . . . 110 190 Lost Ally 915 | . . . . . . 20 120 . . . 40 . 60 . 85 40 20 210 40 . 20 . . 120 . . . 20 . . . 120 . Purge Threat 380 | . . . . . . . . . . . . . . . 380 . . . . . . . . . . . . . . . . . . Squads Dispatched 59 | . 1 1 2 . . . 2 . . 3 . 2 . . . . 1 14 9 . 1 . 1 6 . . . . 5 3 3 5 . Investigation 11 | . . 1 1 . . . 1 . . 1 . . . . . . 1 4 . . . . . . . . . . 2 . . . . Extermination 12 | . . . . . . . . . . 1 . 1 . . . . . 1 2 . . . . 2 . . . . . . 2 3 . Reinforcement 27 | . 1 . 1 . . . 1 . . 1 . 1 . . . . . 8 2 . . . . 3 . . . . 3 3 1 2 . Assault 7 | . . . . . . . . . . . . . . . . . . 1 3 . 1 . 1 1 . . . . . . . . . Garrison 2 | . . . . . . . . . . . . . . . . . . . 2 . . . . . . . . . . . . . . Intercept . | . . . . . . . . . . . . . . . . . . . . . . . . . . . . . . . . . . Searches Triggered . | . . . . . . . . . . . . . . . . . . . . . . . . . . . . . . . . . . Construction Impeded 5 | . . . 1 . . . . . . . . . . . . . . 3 1 . . . . . . . . . . . . . . Haulers Reinforced 8 | . . . . . . . . . . . . . . . . . . 4 . . . . . 1 . . . . 1 2 . . . Active Scanning Responses . | . . . . . . . . . . . . . . . . . . . . . . . . . . . . . . . . . . Cargo Convoy Interrupts . | . . . . . . . . . . . . . . . . . . . . . . . . . . . . . . . . . . Stealth | -11 -10 -10 -9 -9 -9 -8 -8 -7 -7 -7 -7 -7 -7 -6 -6 -6 -6 -6 -5 -5 -5 -5 -4 -4 -4 -4 -4 -3 -3 -2 -1 -1 -1 --------- Run | Yrd Mat Min Mat Min Exi Min Mat Fac Gar Fac Gar Fac Gar Fac Ext Cet Arc Hub Fac Upp Upp Zhi Pro Fac Upp Upp War Pro Res Res Acc Com Ac0 Distress Signals 57 | . . . 1 . . . . . . . 3 1 . . 2 1 . 3 1 . . . . 1 . . . . 11 6 2 25 . Communications Jammed 5 | . . . . . . . . . . . . . . . . . . . . . . . . . 1 . . . . 2 2 . . Distress Signals 5 | . . . . . . . . . . . . . . . . . . . . . . . . . 1 . . . . 2 2 . . Times Spotted 506 | . 12 12 30 3 . 7 19 . 22 4 33 6 29 4 24 10 12 11 24 4 17 . 21 21 6 2 24 11 15 10 9 58 46 Peak Tracking Total 14 | . 5 3 5 3 . 3 5 . 3 2 5 3 4 3 5 5 3 2 4 4 7 . 8 4 4 2 14 4 4 5 3 5 4 Tactical Retreats 14 | . 2 . 1 . . . 1 . . . 3 . . 1 . . . . . . 1 . 2 1 . . . . . . . 2 . Traps | -11 -10 -10 -9 -9 -9 -8 -8 -7 -7 -7 -7 -7 -7 -6 -6 -6 -6 -6 -5 -5 -5 -5 -4 -4 -4 -4 -4 -3 -3 -2 -1 -1 -1 ------- Run | Yrd Mat Min Mat Min Exi Min Mat Fac Gar Fac Gar Fac Gar Fac Ext Cet Arc Hub Fac Upp Upp Zhi Pro Fac Upp Upp War Pro Res Res Acc Com Ac0 Traps Triggered 7 | . . . . . . . . . 2 1 . 1 1 . . . . . . . . . . 1 . . . . 1 . . . . Indirectly . | . . . . . . . . . . . . . . . . . . . . . . . . . . . . . . . . . . Trap Hack Attempts . | . . . . . . . . . . . . . . . . . . . . . . . . . . . . . . . . . . Triggered . | . . . . . . . . . . . . . . . . . . . . . . . . . . . . . . . . . . Disarmed . | . . . . . . . . . . . . . . . . . . . . . . . . . . . . . . . . . . Reprogrammed . | . . . . . . . . . . . . . . . . . . . . . . . . . . . . . . . . . . Reused . | . . . . . . . . . . . . . . . . . . . . . . . . . . . . . . . . . . Traps Extracted . | . . . . . . . . . . . . . . . . . . . . . . . . . . . . . . . . . . Installed . | . . . . . . . . . . . . . . . . . . . . . . . . . . . . . . . . . . Triggered . | . . . . . . . . . . . . . . . . . . . . . . . . . . . . . . . . . . Machines | -11 -10 -10 -9 -9 -9 -8 -8 -7 -7 -7 -7 -7 -7 -6 -6 -6 -6 -6 -5 -5 -5 -5 -4 -4 -4 -4 -4 -3 -3 -2 -1 -1 -1 ---------- Run | Yrd Mat Min Mat Min Exi Min Mat Fac Gar Fac Gar Fac Gar Fac Ext Cet Arc Hub Fac Upp Upp Zhi Pro Fac Upp Upp War Pro Res Res Acc Com Ac0 Machines Disabled 59 | . . . 1 . . . 1 . 3 . 6 . 4 . 2 1 6 10 6 . 1 1 . 8 . . 1 . . 1 1 4 2 Max in Single Turn 8 | . . . 1 . . . . . 1 . 2 . 1 . . 1 1 8 1 . 1 1 . 4 . . 1 . . 1 1 1 1 Garrison Access 2 | . . . . . . . . . . . . . . . . . . 1 . . . . . . . . . . . 1 . . . Garrison Relay 6 | . . . . . . . . . 2 . 1 . 3 . . . . . . . . . . . . . . . . . . . . Phase Generator 3 | . . . . . . . . . 1 . 1 . . . . . . . . . . . . . . . . . . . . 1 . Network Hub 1 | . . . . . . . . . . . . . . . . . . 1 . . . . . . . . . . . . . . . Machines Repaired . | . . . . . . . . . . . . . . . . . . . . . . . . . . . . . . . . . . Machines Dismantled 1 | . . . . . . . . . . . . . . . . . . . . . . . . . . . 1 . . . . . . Machines Sabotaged . | . . . . . . . . . . . . . . . . . . . . . . . . . . . . . . . . . . Overloaded Fab Kills . | . . . . . . . . . . . . . . . . . . . . . . . . . . . . . . . . . . Hacking | -11 -10 -10 -9 -9 -9 -8 -8 -7 -7 -7 -7 -7 -7 -6 -6 -6 -6 -6 -5 -5 -5 -5 -4 -4 -4 -4 -4 -3 -3 -2 -1 -1 -1 --------- Run | Yrd Mat Min Mat Min Exi Min Mat Fac Gar Fac Gar Fac Gar Fac Ext Cet Arc Hub Fac Upp Upp Zhi Pro Fac Upp Upp War Pro Res Res Acc Com Ac0 Machines Accessed 66 | . 3 1 1 . 1 . . 2 1 2 1 7 1 3 11 . . 6 3 1 . 4 . 4 . . 3 . 4 1 4 2 . Terminals 43 | . 3 . 1 . . . . 1 1 1 1 3 1 2 11 . . 5 2 . . . . 4 . . . . 1 1 4 1 . Fabricators 4 | . . . . . . . . . . . . 2 . 1 . . . . 1 . . . . . . . . . . . . . . Repair Stations 1 | . . . . . . . . . . . . . . . . . . . . . . . . . . . . . 1 . . . . Recycling Units 1 | . . . . . . . . . . . . . . . . . . . . . . . . . . . . . . . . 1 . Scanalyzers 2 | . . . . . . . . . . . . 1 . . . . . . . . . . . . . . . . 1 . . . . Garrison Access 5 | . . . . . . . . 1 . 1 . 1 . . . . . 1 . . . . . . . . . . 1 . . . . Total Hacks 123 | . 4 1 2 . 1 . . 2 1 2 2 11 1 8 19 . . 13 5 1 . 17 . 6 . . 6 . 5 1 9 6 . Successful 78 | . 1 1 1 . 1 . . 1 1 2 1 4 1 4 13 . . 5 3 1 . 17 . 3 . . 6 . 4 . 5 3 . Failed 44 | . 2 . 1 . . . . 1 . . 1 7 . 4 6 . . 8 2 . . . . 3 . . . . 1 1 4 3 . Catastrophic 11 | . . . . . . . . 1 . . . 3 . . 1 . . 1 1 . . . . 2 . . . . 1 . 1 . . Database Lockouts 1 | . 1 . . . . . . . . . . . . . . . . . . . . . . . . . . . . . . . . Manual 40 | . 5 . 2 . 1 . . . . . . 1 . 2 5 1 . 12 4 . . . . 2 . . . . 2 . . 3 . Terminals 80 | . 4 . 2 . . . . 1 1 1 2 5 1 7 19 . . 12 4 . . . . 6 . . . . 1 1 9 4 . Fabricators 5 | . . . . . . . . . . . . 3 . 1 . . . . 1 . . . . . . . . . . . . . . Repair Stations 1 | . . . . . . . . . . . . . . . . . . . . . . . . . . . . . 1 . . . . Recycling Units 2 | . . . . . . . . . . . . . . . . . . . . . . . . . . . . . . . . 2 . Scanalyzers 4 | . . . . . . . . . . . . 2 . . . . . . . . . . . . . . . . 2 . . . . Garrison Access 5 | . . . . . . . . 1 . 1 . 1 . . . . . 1 . . . . . . . . . . 1 . . . . Terminal Hacks 58 | . 1 1 1 . 1 . . . 1 1 1 1 1 2 11 . . 1 1 1 . 17 . 3 . . 6 . 1 . 5 1 . Record 6 | . . . . . 1 . . . . . . . . . . . . . . . . 5 . . . . . . . . . . . Part Schematic 5 | . 1 . . . . . . . . . . . . . . . . . . . . 4 . . . . . . . . . . . Robot Analysis 4 | . . . . . . . . . . . . . . . . . . . . . . 4 . . . . . . . . . . . Prototype ID Bank 8 | . . . . . . . . . . . . . . . . . . . . . . 4 . . . . 4 . . . . . . Open Door 15 | . . 1 . . . . . . . . . . . . 8 . . . . 1 . . . . . . 2 . . . 3 . . Level Access Points 2 | . . . . . . . . . . . . . . . . . . 1 . . . . . . . . . . 1 . . . . Branch Access Points 6 | . . . 1 . . . . . . 1 . . . 1 . . . . 1 . . . . 1 . . . . . . 1 . . Emergency Access Points 2 | . . . . . . . . . 1 . 1 . . . . . . . . . . . . . . . . . . . . . . Unreport Threat 3 | . . . . . . . . . . . . . . . 3 . . . . . . . . . . . . . . . . . . Locate Traps 4 | . . . . . . . . . . . . 1 . 1 . . . . . . . . . 1 . . . . . . . 1 . Zone Layout 2 | . . . . . . . . . . . . . . . . . . . . . . . . 1 . . . . . . 1 . . Security Stations 1 | . . . . . . . . . . . . . 1 . . . . . . . . . . . . . . . . . . . . Fabricator Hacks 2 | . . . . . . . . . . . . . . 1 . . . . 1 . . . . . . . . . . . . . . Network Status 2 | . . . . . . . . . . . . . . 1 . . . . 1 . . . . . . . . . . . . . . Repair Station Hacks . | . . . . . . . . . . . . . . . . . . . . . . . . . . . . . . . . . . Recycling Unit Hacks 1 | . . . . . . . . . . . . . . . . . . . . . . . . . . . . . . . . 1 . Retrieve Components 1 | . . . . . . . . . . . . . . . . . . . . . . . . . . . . . . . . 1 . Scanalyzer 3 | . . . . . . . . . . . . 1 . . . . . . . . . . . . . . . . 2 . . . . Retrieve Study 3 | . . . . . . . . . . . . 1 . . . . . . . . . . . . . . . . 2 . . . . Garrison Access Hacks 4 | . . . . . . . . 1 . 1 . 1 . . . . . 1 . . . . . . . . . . . . . . . Unlock Access 3 | . . . . . . . . 1 . 1 . 1 . . . . . . . . . . . . . . . . . . . . . Seal Access 1 | . . . . . . . . . . . . . . . . . . 1 . . . . . . . . . . . . . . . Unauthorized Hacks 10 | . . . . . . . . . . . . 1 . 1 2 . . 3 1 . . . . . . . . . 1 . . 1 . Terminals 9 | . . . . . . . . . . . . 1 . 1 2 . . 3 1 . . . . . . . . . . . . 1 . Assimilate 1 | . . . . . . . . . . . . . . . 1 . . . . . . . . . . . . . . . . . . Botnet 5 | . . . . . . . . . . . . 1 . 1 1 . . . 1 . . . . . . . . . . . . 1 . Sabotage 3 | . . . . . . . . . . . . . . . . . . 3 . . . . . . . . . . . . . . . Fabricators . | . . . . . . . . . . . . . . . . . . . . . . . . . . . . . . . . . . Repair Stations 1 | . . . . . . . . . . . . . . . . . . . . . . . . . . . . . 1 . . . . Patch 1 | . . . . . . . . . . . . . . . . . . . . . . . . . . . . . 1 . . . . Recycling Units . | . . . . . . . . . . . . . . . . . . . . . . . . . . . . . . . . . . Scanalyzers . | . . . . . . . . . . . . . . . . . . . . . . . . . . . . . . . . . . Garrison Access . | . . . . . . . . . . . . . . . . . . . . . . . . . . . . . . . . . . Data Cores Recovered 3 | . . . . . . . . . . 1 . . . . . . . . 1 . . . . . . . . . . . . 1 . Used . | . . . . . . . . . . . . . . . . . . . . . . . . . . . . . . . . . . Hacking Detections 39 | . 2 . . . . . . 2 1 2 1 6 . 3 6 1 . 4 1 . . . . 3 . . . . 2 1 2 2 . Full Trace Events 1 | . . . . . . . . . . . . . . . . . . 1 . . . . . . . . . . . . . . . Feedback Events . | . . . . . . . . . . . . . . . . . . . . . . . . . . . . . . . . . . Feedback Blocked . | . . . . . . . . . . . . . . . . . . . . . . . . . . . . . . . . . . Robot Schematics Acquired . | . . . . . . . . . . . . . . . . . . . . . . . . . . . . . . . . . . Robots Built . | . . . . . . . . . . . . . . . . . . . . . . . . . . . . . . . . . . Authchips . | . . . . . . . . . . . . . . . . . . . . . . . . . . . . . . . . . . Time . | . . . . . . . . . . . . . . . . . . . . . . . . . . . . . . . . . . Total Robot Build Rating . | . . . . . . . . . . . . . . . . . . . . . . . . . . . . . . . . . . Part Schematics Acquired 5 | . 1 . . . . . . . . . . . . . . . . . . . . 4 . . . . . . . . . . . Parts Built . | . . . . . . . . . . . . . . . . . . . . . . . . . . . . . . . . . . Authchips . | . . . . . . . . . . . . . . . . . . . . . . . . . . . . . . . . . . Time . | . . . . . . . . . . . . . . . . . . . . . . . . . . . . . . . . . . Total Part Build Rating . | . . . . . . . . . . . . . . . . . . . . . . . . . . . . . . . . . . Part Studies Acquired 3 | . . . . . . . . . . . . 1 . . . . . . . . . . . . . . . . 2 . . . . Parts Repaired . | . . . . . . . . . . . . . . . . . . . . . . . . . . . . . . . . . . Time . | . . . . . . . . . . . . . . . . . . . . . . . . . . . . . . . . . . Parts Recycled . | . . . . . . . . . . . . . . . . . . . . . . . . . . . . . . . . . . Recycled Matter . | . . . . . . . . . . . . . . . . . . . . . . . . . . . . . . . . . . Retrieved Matter . | . . . . . . . . . . . . . . . . . . . . . . . . . . . . . . . . . . Retrieved Components 3 | . . . . . . . . . . . . . . . . . . . . . . . . . . . . . . . . 3 . Parts Scanalyzed . | . . . . . . . . . . . . . . . . . . . . . . . . . . . . . . . . . . Part Schematics Acquired . | . . . . . . . . . . . . . . . . . . . . . . . . . . . . . . . . . . Parts Damaged . | . . . . . . . . . . . . . . . . . . . . . . . . . . . . . . . . . . Bothacking | -11 -10 -10 -9 -9 -9 -8 -8 -7 -7 -7 -7 -7 -7 -6 -6 -6 -6 -6 -5 -5 -5 -5 -4 -4 -4 -4 -4 -3 -3 -2 -1 -1 -1 ------------ Run | Yrd Mat Min Mat Min Exi Min Mat Fac Gar Fac Gar Fac Gar Fac Ext Cet Arc Hub Fac Upp Upp Zhi Pro Fac Upp Upp War Pro Res Res Acc Com Ac0 Used RIF Installer . | . . . . . . . . . . . . . . . . . . . . . . . . . . . . . . . . . . Robots Hacked . | . . . . . . . . . . . . . . . . . . . . . . . . . . . . . . . . . . Non-combat . | . . . . . . . . . . . . . . . . . . . . . . . . . . . . . . . . . . Combat . | . . . . . . . . . . . . . . . . . . . . . . . . . . . . . . . . . . Robot Hacks Applied . | . . . . . . . . . . . . . . . . . . . . . . . . . . . . . . . . . . Relay Couplers Released 26 | . . . . . . . . . 10 . 3 . 12 . . . . . . . . . . . . . . . . 1 . . . Machine Destruction 26 | . . . . . . . . . 10 . 3 . 12 . . . . . . . . . . . . . . . . 1 . . . Fabnet Peak Effective % . | . . . . . . . . . . . . . . . . . . . . . . . . . . . . . . . . . . Robots Rewired 23 | . . . . . . . . . . . 2 . . . 17 . . . . . 2 . 2 . . . . . . . . . . Allies Hacked 5 | . . . . . . . . . . . . . 1 . . . . . 1 . . . . . . . . . . . . 3 . Hacks Repelled . | . . . . . . . . . . . . . . . . . . . . . . . . . . . . . . . . . . Allies | -11 -10 -10 -9 -9 -9 -8 -8 -7 -7 -7 -7 -7 -7 -6 -6 -6 -6 -6 -5 -5 -5 -5 -4 -4 -4 -4 -4 -3 -3 -2 -1 -1 -1 -------- Run | Yrd Mat Min Mat Min Exi Min Mat Fac Gar Fac Gar Fac Gar Fac Ext Cet Arc Hub Fac Upp Upp Zhi Pro Fac Upp Upp War Pro Res Res Acc Com Ac0 Total Allies 78 | . . . 3 3 . . 4 . . . 2 3 1 . 29 5 . 2 4 . 2 . 2 5 . 1 . 1 . . . 11 . Largest Group 26 | . . . 3 6 6 6 7 . . . 2 3 3 . 24 26 22 18 3 . 2 1 2 5 1 1 . 1 . . . 5 . Highest-Rated Group 1191 | . . . 45 85 85 85 109 . . . 56 87 116 . 818 1191 1070 840 162 . 78 22 95 168 110 183 . 183 . . . 210 . Highest-Rated Ally 183 | . . . 15 16 16 16 16 . . . 31 29 116 . 159 159 143 96 54 . 49 22 48 110 110 183 . 183 . . . 82 . Initial Warlord ECA Mod 17 | . . . . . . . . . . 7 7 13 13 17 17 17 17 17 16 16 16 16 15 15 15 15 15 14 14 13 12 12 12 Total Orders 6 | . . . . . . . . . . . . . . . . 2 2 2 . . . . . . . . . . . . . . . STAY 4 | . . . . . . . . . . . . . . . . 1 1 2 . . . . . . . . . . . . . . . FOLLOW 2 | . . . . . . . . . . . . . . . . 1 1 . . . . . . . . . . . . . . . . Ally Attacks 626 | . . . 9 2 . 24 35 . . . 4 11 17 . 126 41 33 165 41 . 22 . . 27 2 1 . 11 . . . 55 . Total Damage 16799 | . . . 160 27 . 422 541 . . . 92 115 250 . 2149 976 656 5949 1113 . 688 . . 731 102 91 . 522 . . . 2215 . Kills 109 | . . . 3 2 . 4 5 . . . . 2 2 . 17 5 1 37 8 . 4 . . 6 1 1 . 5 . . . 6 . Allies Corrupted 5 | . . . . . . . . . . . . . 1 . . . . 1 . . . . . . . . . . . . . 3 . Allies Melted 5 | . . . . . . . 1 . . . . . . . 1 . . 1 . . . . . . . . 1 . . 1 . . . X0-1V1 Amusement Gains 523 | . 19 . 5 . . 10 . 5 10 . 50 10 20 10 . . . 30 30 . . 75 25 . 5 . 20 . 20 87 . 12 80 Good Acts 165 | . 1 4 11 2 . 3 6 1 2 1 15 4 13 6 5 4 . 1 5 1 4 . 4 9 3 3 1 7 2 . 1 27 19 Bad Acts 81 | . . . 7 . . . 2 . 5 2 . 1 . 3 3 7 2 1 5 3 . . 3 1 1 . 4 1 1 2 2 18 7 Intel | -11 -10 -10 -9 -9 -9 -8 -8 -7 -7 -7 -7 -7 -7 -6 -6 -6 -6 -6 -5 -5 -5 -5 -4 -4 -4 -4 -4 -3 -3 -2 -1 -1 -1 ------- Run | Yrd Mat Min Mat Min Exi Min Mat Fac Gar Fac Gar Fac Gar Fac Ext Cet Arc Hub Fac Upp Upp Zhi Pro Fac Upp Upp War Pro Res Res Acc Com Ac0 Active Infowar (turns) 15364 | 20 245 192 . . . . . 230 1215 733 . 929 . 351 . . 145 219 1015 669 396 481 664 1390 317 310 1337 629 1120 685 757 423 892 Optics 909 | . . . . . . . . . . . . . . . . . . . . . . . . . . . . . . . . 17 892 IFF 2201 | . . . . . . . . . . . . . . . . . . . . 665 391 481 664 . . . . . . . . . . Terrain 1033 | . . . . . . . . . . . . . . . . . . . . . . . . . . . . . . . 615 . 418 Structural 8711 | . . . . . . . . 230 1215 733 . 929 . 351 . . 145 219 1015 462 359 481 43 743 277 245 1073 . . 191 . . . Seismic 457 | 20 245 192 . . . . . . . . . . . . . . . . . . . . . . . . . . . . . . . Jamming 6951 | . . . . . . . . . . . . . . . . . . . . . . . . 1390 317 310 1337 629 1120 685 757 406 . Robot Analysis Total 4 | . . . . . . . . . . . . . . . . . . . . . . 4 . . . . . . . . . . . Derelict Logs Recovered 7 | . . 2 . . . . . . . . . . . . . . . . . . 1 . 2 . 1 1 . . . . . . . Drone Launches . | . . . . . . . . . . . . . . . . . . . . . . . . . . . . . . . . . . Drone Recoveries . | . . . . . . . . . . . . . . . . . . . . . . . . . . . . . . . . . . Exploration | -11 -10 -10 -9 -9 -9 -8 -8 -7 -7 -7 -7 -7 -7 -6 -6 -6 -6 -6 -5 -5 -5 -5 -4 -4 -4 -4 -4 -3 -3 -2 -1 -1 -1 ------------- Run | Yrd Mat Min Mat Min Exi Min Mat Fac Gar Fac Gar Fac Gar Fac Ext Cet Arc Hub Fac Upp Upp Zhi Pro Fac Upp Upp War Pro Res Res Acc Com Ac0 Turns Passed 28798 | 93 245 520 960 207 860 456 578 231 1215 733 1605 947 1277 418 1452 700 472 755 1464 692 582 481 964 1391 317 310 1337 629 1120 685 757 3453 892 Spaces Moved 14097 | 52 299 305 461 120 512 261 297 140 599 407 696 485 601 235 699 328 166 372 757 282 185 236 299 653 143 145 730 306 576 370 385 1742 253 Core 332 | 33 299 . . . . . . . . . . . . . . . . . . . . . . . . . . . . . . . . Treads 13571 | 19 . 159 413 120 512 261 297 140 599 407 696 485 601 235 699 328 166 372 757 282 185 236 299 653 143 145 730 306 576 370 385 1742 253 Legs . | . . . . . . . . . . . . . . . . . . . . . . . . . . . . . . . . . . Wheels 194 | . . 146 48 . . . . . . . . . . . . . . . . . . . . . . . . . . . . . . Hover . | . . . . . . . . . . . . . . . . . . . . . . . . . . . . . . . . . . Flight . | . . . . . . . . . . . . . . . . . . . . . . . . . . . . . . . . . . Fastest Speed 50 | 50 50 95 95 160 160 160 155 156 156 160 160 160 160 160 160 160 165 165 163 166 245 165 245 166 170 170 170 170 163 163 163 135 135 Average Speed 161 | 90 50 128 153 160 160 160 159 156 158 160 160 160 160 160 160 163 165 165 164 233 245 183 245 170 188 170 170 170 167 163 163 147 146 Slowest Speed 330 | 160 100 160 160 160 160 160 240 156 235 160 165 160 160 160 160 330 165 165 166 245 245 245 245 255 255 170 170 170 170 163 163 227 218 Overloaded Moves . | . . . . . . . . . . . . . . . . . . . . . . . . . . . . . . . . . . Propulsion Burnouts . | . . . . . . . . . . . . . . . . . . . . . . . . . . . . . . . . . . Robots Hopped 4 | . . . . . . . 1 . . . . . . . . . . 3 . . . . . . . . . . . . . . . Potential Cave-ins . | . . . . . . . . . . . . . . . . . . . . . . . . . . . . . . . . . . Cave-ins Triggered . | . . . . . . . . . . . . . . . . . . . . . . . . . . . . . . . . . . Teleports 1 | . . . . . . . . . . . . . . . . . . . . . . . . . . . . . . . . 1 . Exploration Rate (%) 44 | 3 45 64 58 24 85 70 38 4 70 16 77 25 60 8 86 72 87 37 28 57 44 69 51 25 29 33 90 54 21 13 13 30 27 Regions Visited 33 Branch Regions 18 Pre-discovered Areas 9 | . . 2 . . 1 . . . . . . . . . . . . . . 1 1 3 . . . 1 . . . . . . . Known Exits Taken 17 | . . . 1 1 . 1 . 1 . 1 . 1 . 1 . . . 1 1 . . . 1 1 1 . 1 1 1 . 1 1 . Unknown Exits Taken 13 | 1 1 1 . . 1 . 1 . . . . . . . 1 1 1 . . 1 1 1 . . . 1 . . . 1 . . . Scrap Searched 16 | . . 3 . . . 1 . . . . . . . . . . . . . 1 2 . 2 . 3 2 . 2 . . . . . Spaces Dug 140 | . 1 . . . . . . . . 5 . 10 2 6 . . . 9 16 . . . 10 22 1 1 4 10 13 4 17 9 . Terrain Destroyed 1251 | . 1 . 49 . . 18 36 7 12 7 108 10 65 6 8 20 19 198 86 . 7 . 90 98 69 22 26 88 18 5 57 47 74 Melee 20 | . . . . . . . . . . 3 . 10 2 5 . . . . . . . . . . . . . . . . . . . Projectile 438 | . 1 . . . . . . . . 4 9 . 6 1 7 19 19 24 30 . . . 49 52 14 22 26 12 18 5 19 41 60 AOE 789 | . . . 49 . . 18 36 7 12 . 98 . 57 . . . . 174 56 . 7 . 41 46 55 . . 76 . . 38 5 14 Terrain Rammed . | . . . . . . . . . . . . . . . . . . . . . . . . . . . . . . . . . . Walls Destroyed . | . . . . . . . . . . . . . . . . . . . . . . . . . . . . . . . . . . Machines Disabled . | . . . . . . . . . . . . . . . . . . . . . . . . . . . . . . . . . . Actions | -11 -10 -10 -9 -9 -9 -8 -8 -7 -7 -7 -7 -7 -7 -6 -6 -6 -6 -6 -5 -5 -5 -5 -4 -4 -4 -4 -4 -3 -3 -2 -1 -1 -1 --------- Run | Yrd Mat Min Mat Min Exi Min Mat Fac Gar Fac Gar Fac Gar Fac Ext Cet Arc Hub Fac Upp Upp Zhi Pro Fac Upp Upp War Pro Res Res Acc Com Ac0 Total 18091 | 79 357 370 617 132 555 296 352 150 748 456 998 601 801 262 970 437 295 446 895 305 277 284 444 839 172 186 784 383 671 420 471 2444 594 Wait 1513 | . 24 1 22 9 8 15 3 . 33 7 128 60 129 4 111 38 79 24 23 5 25 24 69 80 1 29 5 36 37 7 27 329 121 Move 14055 | 51 298 304 460 119 511 260 294 139 596 407 692 485 600 234 698 327 165 366 756 281 184 235 298 653 142 144 729 305 575 369 384 1741 253 Hop 4 | . . . . . . . 1 . . . . . . . . . . 3 . . . . . . . . . . . . . . . Pick Up 199 | 5 . 12 22 . 6 6 7 2 5 5 6 3 1 4 7 12 4 1 8 2 . 1 1 15 2 . 2 3 6 6 3 34 8 Fast Attach 119 | 5 1 1 10 1 8 . 3 1 8 1 6 3 . . 5 5 3 4 3 . 2 10 2 3 3 . 8 . 2 . 1 15 5 Attach 102 | 3 4 4 3 . 2 . 4 2 1 . 2 1 1 4 2 1 . . 6 1 3 1 9 2 . . . 2 2 2 3 17 20 Detach 33 | 3 4 . 1 . . . . . . . . 2 . . 1 . . . 5 . 2 2 1 . . . . 1 . . . 8 3 Swap 446 | . 2 5 13 1 4 2 7 3 24 15 36 15 23 6 12 9 12 9 31 8 21 1 9 32 9 4 7 8 8 9 24 66 11 Drop 257 | 1 . 5 24 1 16 6 8 2 14 6 17 6 1 2 9 19 6 6 9 1 2 9 3 10 5 . 9 2 8 5 2 40 3 Fire 1150 | 11 24 38 60 1 . 6 24 1 66 12 81 8 38 3 21 26 26 33 50 7 23 1 44 43 10 9 15 26 33 20 27 193 170 Melee 37 | . . . . . . . . . . 3 2 18 8 5 . . . . . . . . . . . . . . . . . 1 . Ram . | . . . . . . . . . . . . . . . . . . . . . . . . . . . . . . . . . . Kick . | . . . . . . . . . . . . . . . . . . . . . . . . . . . . . . . . . . Crush 11 | . . . 2 . . 1 1 . . . . . . . . . . . 4 . . . . 1 . . . . . 2 . . . Escape Stasis 1 | . . . . . . . . . 1 . . . . . . . . . . . . . . . . . . . . . . . . Rewire 156 | . . . . . . . . . . . 28 . . . 104 . . . . . 15 . 8 . . . 1 . . . . . . Trap . | . . . . . . . . . . . . . . . . . . . . . . . . . . . . . . . . . . Miscellaneous 8 | . . . . . . . . . . . . . . . . . . . . . . . . . . . 8 . . . . . . Route ------- -11/Scrapyard -10/Materials (discovered 3 exits: *Mat / *Min / [*Sub]) -10/Mines -9/Materials (discovered 4 exits: *Mat x2 / *Min x2) -9/Mines (discovered 2 exits: *Mat / *Exi) -9/Exiles -8/Mines -8/Materials -7/Factory -7/Garrison (discovered 2 exits: *Fac x2) -7/Factory (discovered 6 exits: *Fac / Sto x2 / *Low x2 / Gar) -7/Garrison (discovered 3 exits: *Fac x3) -7/Factory (discovered 2 exits: *Low / Gar) -7/Garrison (discovered 3 exits: *Fac x3) -6/Factory (discovered 5 exits: Fac / Low x2 / *Ext x2) -6/Extension (discovered 2 exits: *Fac / *Cet) -6/Cetus (discovered 3 exits: *Fac x2 / [*Arc]) -6/Archives (discovered 3 exits: *Fac / *Hub x2) -6/Hub_04(d) (discovered 4 exits: *Fac x4) -5/Factory (discovered 4 exits: *Fac x2 / *Upp x2) -5/Upper Caves -5/Upper Caves -5/Zhirov -4/Proximity Caves -4/Factory (discovered 3 exits: *Res / *Upp x2) -4/Upper Caves -4/Upper Caves -4/Warlord -3/Proximity Caves -3/Research (discovered 5 exits: *Res x3 / Tes x2) -2/Research -1/Access -1/Command (discovered 3 exits: Sur x2 / *Ac0) -1/Access_0 (discovered 1 exit: Sur) History --------- Turn | Location | Event 3 | -11/Scrapyard | Discovered new exit (range 16) 94 | -11/Scrapyard | Entered Materials 117 | -10/Materials | Discovered new exit (range 10) 118 | -10/Materials | Discovered new exit (range 16) 199 | -10/Materials | Discovered new exit (range 5) 203 | -10/Materials | Prayed at D.C.S.S. Altar Unit 228 | -10/Materials | Central database locked down 300 | -10/Materials | Build established: Mutant 339 | -10/Materials | Entered Mines 391 | -10/Mines | Learned location of Storage (-7) 547 | -10/Mines | Core integrity fell below 50% 562 | -10/Mines | Lost 3 parts (1p1n1u) 608 | -10/Mines | Weapon slot count permanently improved by X0-1V1 (+1) 806 | -10/Mines | Met a Derelict shopkeep closing up shop 848 | -10/Mines | Discovered new exit (range 10) 859 | -10/Mines | Entered Materials 859 | -9/Materials | Evolved 2 slots: Propulsion x1, Utility x1 1113 | -9/Materials | Core integrity permanently improved by X0-1V1 (+250) 1176 | -9/Materials | Build established: Tank 1216 | -9/Materials | Discovered new exit (range 6) 1350 | -9/Materials | Identified exit to Mines 1480 | -9/Materials | Discovered new exit (range 3) 1561 | -9/Materials | X0-1V1 sent you to a vault 1634 | -9/Materials | X0-1V1 sent you into danger 1640 | -9/Materials | X0-1V1 upgraded hostiles (x3) 1660 | -9/Materials | Weapon slot count temporarily expanded by X0-1V1 (+4) 1702 | -9/Materials | Identified exit to Materials 1702 | -9/Materials | X0-1V1 revealed exit location to -8/Materials 1819 | -9/Materials | Entered Mines 1819 | -9/Mines | Accompanied by 3 allies 1837 | -9/Mines | Discovered exit to Materials (range 10) 1845 | -9/Mines | Assisted by bots powering up and referring to "LRC-V3" 1919 | -9/Mines | Identified exit to Exiles 1919 | -9/Mines | X0-1V1 revealed exit location to -9/Exiles 1989 | -9/Mines | EM resistance permanently improved by X0-1V1 (+20%; -200 max core) 2007 | -9/Mines | Deemed a non-threat by the Exiles lab entrance 2026 | -9/Mines | Entered Exiles 2026 | -9/Exiles | Accompanied by 6 allies 2065 | -9/Exiles | Met 8R-AWN 2094 | -9/Exiles | Met EX-HEX 2137 | -9/Exiles | Met EX-BIN 2168 | -9/Exiles | Aligned with FarCom system 2169 | -9/Exiles | Given EX-Vault access code 2211 | -9/Exiles | Opened EX-Vault 2221 | -9/Exiles | Found Prototype Device 2221 | -9/Exiles | Identified Supersonic Drone Bay 2232 | -9/Exiles | Found Prototype Energy Cannon 2232 | -9/Exiles | Identified YOLO Cannon 2242 | -9/Exiles | Found Prototype Ballistic Gun 2274 | -9/Exiles | Warned to stay clear of 0b10 Research branches 2322 | -9/Exiles | Met EX-DEC 2389 | -9/Exiles | Visited The Gauntlet 2431 | -9/Exiles | Build established: Commander-Mutant 2546 | -9/Exiles | Learned location of Zion (-6) 2858 | -9/Exiles | Discovered new exit (range 12) 2886 | -9/Exiles | Left Exiles lab with XL Autogun Array 2886 | -9/Exiles | Entered Mines 2886 | -8/Mines | Accompanied by 6 allies 2922 | -8/Mines | Lost 3 allies 3079 | -8/Mines | X0-1V1 revealed exit location to -8/Materials 3178 | -8/Mines | Build established: Skirmisher 3207 | -8/Mines | Found DCF Scrap (14 items) 3342 | -8/Mines | Entered Materials 3342 | -8/Materials | Accompanied by 3 allies 3342 | -8/Materials | Evolved 2 slots: Utility x2 3372 | -8/Materials | X0-1V1 foreshadows a heat wave 3520 | -8/Materials | X0-1V1 released a cloud of subatomizers 3571 | -8/Materials | X0-1V1 sent you to a vault 3579 | -8/Materials | Ambient heat levels rising (+10) 3728 | -8/Materials | X0-1V1 activates XOMVISION 3747 | -8/Materials | Ambient heat levels rising (+10) 3783 | -8/Materials | Lost 3 allies 3832 | -8/Materials | Lost 4 allies 3866 | -8/Materials | Discovered new exit (range 18) 3914 | -8/Materials | X0-1V1 mutated your Weapon slot to Propulsion slot 3920 | -8/Materials | Entered Factory 3920 | -7/Factory | Evolved 2 slots: Utility x1, Weapon x1 4088 | -7/Factory | Identified exit to Garrison 4151 | -7/Factory | Entered Garrison 4189 | -7/Garrison | Triggered checkpoint 4307 | -7/Garrison | X0-1V1 destroyed Phase Generator 4307 | -7/Garrison | Phase Generator disabled 4352 | -7/Garrison | System corruption reached 10% 4426 | -7/Garrison | Triggered checkpoint 4503 | -7/Garrison | Triggered checkpoint 4526 | -7/Garrison | Triggered checkpoint 4555 | -7/Garrison | Triggered checkpoint 4708 | -7/Garrison | X0-1V1 vaporized surrounding terrain (radius 19) 4740 | -7/Garrison | Discovered new exit (range 15) 4758 | -7/Garrison | Triggered checkpoint 4830 | -7/Garrison | Garrison Relay disabled 4981 | -7/Garrison | Build established: Scavenger-Skirmisher 5089 | -7/Garrison | Triggered checkpoint 5107 | -7/Garrison | Garrison Relay disabled 5166 | -7/Garrison | Discovered new exit (range 8) 5181 | -7/Garrison | Attempted to access garrison exit controls, blocked by remote lockdown 5366 | -7/Garrison | Entered Factory 5403 | -7/Factory | Discovered new exit (range 6) 5413 | -7/Factory | Discovered new exit (range 9) 5600 | -7/Factory | X0-1V1 sent hostile L-31 Rogue (x2) 5997 | -7/Factory | Identified exit to Storage 5997 | -7/Factory | Identified exit to Lower Caves 6099 | -7/Factory | Identified exit to Garrison 6099 | -7/Factory | Entered Garrison 6185 | -7/Garrison | Heavy support dispatched to Factory 6199 | -7/Garrison | Phase Generator disabled 6547 | -7/Garrison | Triggered checkpoint 6555 | -7/Garrison | Triggered checkpoint 6584 | -7/Garrison | Identified exit to Factory 6584 | -7/Garrison | X0-1V1 revealed exit location to -7/Factory 6611 | -7/Garrison | Triggered checkpoint 6712 | -7/Garrison | Discovered exit to Factory (range 14) 6783 | -7/Garrison | Triggered checkpoint 7052 | -7/Garrison | X0-1V1 revealed exit location to -7/Factory 7125 | -7/Garrison | Attempted to access garrison exit controls, blocked by remote lockdown 7254 | -7/Garrison | Attempted to access garrison exit controls, blocked by remote lockdown 7270 | -7/Garrison | Heavy support dispatched to Factory 7431 | -7/Garrison | Core integrity restored by X0-1V1 (+165) 7525 | -7/Garrison | Build established: Scavenger-Tank 7553 | -7/Garrison | Triggered checkpoint 7581 | -7/Garrison | Garrison Relay disabled 7704 | -7/Garrison | Entered Factory 7808 | -7/Factory | Discovered exit to Lower Caves (range 14) 8109 | -7/Factory | Weapon slot count temporarily expanded by X0-1V1 (+4) 8573 | -7/Factory | X0-1V1 sent you to a vault 8648 | -7/Factory | Identified exit to Garrison 8651 | -7/Factory | Entered Garrison 8651 | -7/Garrison | Accompanied by 3 allies 8709 | -7/Garrison | Garrison Relay disabled 8822 | -7/Garrison | Lost 3 allies 8956 | -7/Garrison | X0-1V1 sent allied B-86 Titan (x1) 8993 | -7/Garrison | X0-1V1 activates XOMVISION 9024 | -7/Garrison | Destroyed 9 combat bots 9031 | -7/Garrison | Triggered checkpoint 9062 | -7/Garrison | Triggered checkpoint 9096 | -7/Garrison | Triggered checkpoint 9159 | -7/Garrison | Learned Factory security intel 9181 | -7/Garrison | Triggered checkpoint 9205 | -7/Garrison | Garrison Relay disabled 9258 | -7/Garrison | Discovered new exit (range 12) 9368 | -7/Garrison | Discovered new exit (range 12) 9542 | -7/Garrison | Identified exit to Factory 9542 | -7/Garrison | X0-1V1 revealed exit location to -6/Factory 9633 | -7/Garrison | X0-1V1 activates XOMVISION 9697 | -7/Garrison | Triggered checkpoint 9741 | -7/Garrison | Garrison Relay disabled 9928 | -7/Garrison | Entered Factory 9928 | -6/Factory | Evolved 2 slots: Utility x1, Weapon x1 10153 | -6/Factory | X0-1V1 redirected Transport squads to designated parking area 10253 | -6/Factory | Identified exit to Lower Caves 10253 | -6/Factory | Identified exit to Extension 10335 | -6/Factory | Identified exit to Factory 10335 | -6/Factory | X0-1V1 revealed exit location to -5/Factory 10346 | -6/Factory | Entered Extension 10469 | -6/Extension | Rescued a captive Derelict 10470 | -6/Extension | Rescued a captive Derelict 10594 | -6/Extension | Rescued a captive Derelict 10595 | -6/Extension | Rescued a captive Derelict 10660 | -6/Extension | X0-1V1 activates XOMVISION 10744 | -6/Extension | Rescued a captive Derelict 10984 | -6/Extension | Build established: Commander-Tank 11090 | -6/Extension | Spotted B-75 Beast 11096 | -6/Extension | Destroyed B-75 Beast 11134 | -6/Extension | Spotted B-75 Beast 11145 | -6/Extension | Destroyed B-75 Beast 11180 | -6/Extension | Lost 5 allies 11220 | -6/Extension | Rescued A7 11392 | -6/Extension | Rescued a captive Derelict 11403 | -6/Extension | Rescued a captive Derelict 11487 | -6/Extension | Rescued a captive Derelict 11488 | -6/Extension | Rescued a captive Derelict 11599 | -6/Extension | Rescued a captive Derelict 11640 | -6/Extension | Discovered exit to Factory (range 10) 11642 | -6/Extension | Discovered new exit (range 6) 11798 | -6/Extension | Entered Cetus 11798 | -6/Cetus | Accompanied by 23 allies (A7) 11803 | -6/Cetus | Acquired a Cetus Manufacturing Module code from A7 11819 | -6/Cetus | Spotted Cetus Guard 11819 | -6/Cetus | Spotted Cetus Guard 11822 | -6/Cetus | Spotted Cetus Guard 11822 | -6/Cetus | Spotted Cetus Guard 11823 | -6/Cetus | Destroyed Cetus Guard 11834 | -6/Cetus | Allies destroyed Cetus Guard 11840 | -6/Cetus | Allies destroyed Cetus Guard 11842 | -6/Cetus | Allies destroyed Cetus Guard 11936 | -6/Cetus | Started Cetus Manufacturing Module 11961 | -6/Cetus | Manufactured an Enhanced Grunt 11986 | -6/Cetus | Manufactured an Enhanced Grunt 12011 | -6/Cetus | Manufactured an Enhanced Grunt 12036 | -6/Cetus | Manufactured an Enhanced Grunt 12061 | -6/Cetus | Manufactured an Enhanced Grunt 12068 | -6/Cetus | Escorted A7 to Cetus Mainframe 12091 | -6/Cetus | Discovered new exit (range 18) 12101 | -6/Cetus | Discovered exit to Factory (range 12) 12101 | -6/Cetus | Spotted Cetus Guard 12101 | -6/Cetus | Spotted Cetus Guard 12101 | -6/Cetus | Spotted Cetus Guard 12101 | -6/Cetus | Spotted Cetus Guard 12101 | -6/Cetus | X0-1V1 sent you into danger 12112 | -6/Cetus | Destroyed Cetus Guard 12115 | -6/Cetus | Allies destroyed Cetus Guard 12119 | -6/Cetus | Destroyed Cetus Guard 12125 | -6/Cetus | Destroyed Cetus Guard 12141 | -6/Cetus | Met Revision 17 12149 | -6/Cetus | Lost 3 parts (1n1u1w) 12279 | -6/Cetus | X0-1V1 revealed exit location to -5/Factory 12498 | -6/Cetus | X0-1V1 rewrote T5-Z2Z(l) IFF filter 12498 | -6/Cetus | Entered Archives 12498 | -6/Archives | Accompanied by 22 allies (A7) 12503 | -6/Archives | Received a hacking code to weaken MAIN.C 12731 | -6/Archives | Discovered new exit (range 18) 12770 | -6/Archives | Discovered new exit (range 18) 12848 | -6/Archives | Discovered exit to Factory (range 5) 12848 | -6/Archives | X0-1V1 sent you into danger 12970 | -6/Archives | Entered Hub_04(d) 12970 | -6/Hub_04(d) | Accompanied by 18 allies 13604 | -6/Hub_04(d) | Network Hub disabled 13619 | -6/Hub_04(d) | Spotted Lightning 13619 | -6/Hub_04(d) | Spotted Lightning 13627 | -6/Hub_04(d) | X0-1V1 sent allied B-48 Gladiator (x2) 13636 | -6/Hub_04(d) | Destroyed Lightning 13643 | -6/Hub_04(d) | Destroyed Lightning 13661 | -6/Hub_04(d) | Found Prototype Device 13661 | -6/Hub_04(d) | Identified Exp. Phase Shifter 13667 | -6/Hub_04(d) | Lost 6 allies 13670 | -6/Hub_04(d) | First assault squad dispatched 13682 | -6/Hub_04(d) | Found Prototype Energy Cannon 13711 | -6/Hub_04(d) | Found Prototype Device 13711 | -6/Hub_04(d) | Identified Exp. Thermal Shield 13725 | -6/Hub_04(d) | Entered Factory 13725 | -5/Factory | Evolved 2 slots: Power x1, Propulsion x1 13748 | -5/Factory | Build established: Scavenger-Tank 14025 | -5/Factory | First assault squad dispatched 14140 | -5/Factory | X0-1V1 sent you to a vault 14512 | -5/Factory | Discovered new exit (range 15) 14572 | -5/Factory | Sage 6a assimilated hostile H-66 Slayer 14606 | -5/Factory | Identified exit to Factory 14785 | -5/Factory | Identified EMDS 14842 | -5/Factory | X0-1V1 enhanced Transport squad support 14952 | -5/Factory | Identified exit to Upper Caves 15041 | -5/Factory | Garrison activated, responded to threat 15050 | -5/Factory | Discovered exit to Factory (range 7) 15150 | -5/Factory | X0-1V1 announced a LAN party 15189 | -5/Factory | Entered Upper Caves 15247 | -5/Upper Caves | Met a Warlord Commander 15248 | -5/Upper Caves | Learned location of Warlord (-4) 15249 | -5/Upper Caves | Warlord Commander delivered Encrypted Comm Array 15256 | -5/Upper Caves | Found Encrypted Comm Array 15259 | -5/Upper Caves | X0-1V1 mutated your Propulsion slot to Utility slot 15679 | -5/Upper Caves | X0-1V1 mutated your Utility slot to Weapon slot 15734 | -5/Upper Caves | Sensors blinded by X0-1V1 15788 | -5/Upper Caves | Discovered new exit (range 7) 15881 | -5/Upper Caves | Entered another Upper Caves area 15913 | -5/Upper Caves | Attracted the attention of an 0b10 outpost 16190 | -5/Upper Caves | Spotted B-75 Beast 16203 | -5/Upper Caves | Allies destroyed B-75 Beast 16344 | -5/Upper Caves | Attracted the attention of an 0b10 checkpoint 16436 | -5/Upper Caves | Discovered new exit (range 12) 16463 | -5/Upper Caves | Entered Zhirov 16463 | -5/Zhirov | Accompanied by 1 ally 16466 | -5/Zhirov | Discovered new exit (range 4) 16495 | -5/Zhirov | Met Zhirov 16527 | -5/Zhirov | Learned location of Quarantine (-2) 16527 | -5/Zhirov | Learned location of Testing (-3) 16527 | -5/Zhirov | Learned location of Command (-1) 16551 | -5/Zhirov | Zhirov requested help retrieving the SGEMP Prototype 16577 | -5/Zhirov | Found Alien Artifact 16577 | -5/Zhirov | Identified Integrated Reactor 16577 | -5/Zhirov | Installed Integrated Reactor, increased core energy generation (+10) 16657 | -5/Zhirov | Found Alien Artifact 16770 | -5/Zhirov | Build established: Scavenger-Mutant 16807 | -5/Zhirov | Cloak Generator disabled 16807 | -5/Zhirov | Attacked by Zhirov 16817 | -5/Zhirov | Enhanced Grunts warped into view 16838 | -5/Zhirov | Zhirov detonated his lab 16944 | -5/Zhirov | Entered Proximity Caves 17081 | -4/Proximity Caves | Build established: Scavenger-Tank 17137 | -4/Proximity Caves | Spotted B-86 Titan 17158 | -4/Proximity Caves | Destroyed B-86 Titan 17627 | -4/Proximity Caves | Attracted the attention of an 0b10 outpost 17638 | -4/Proximity Caves | X0-1V1 downgraded hostiles (x1) 17646 | -4/Proximity Caves | X0-1V1 activates XOMVISION 17696 | -4/Proximity Caves | Lost 3 parts (3u) 17711 | -4/Proximity Caves | X0-1V1 revealed exit location to -4/Factory 17740 | -4/Proximity Caves | Destroyed 13 combat bots 17908 | -4/Proximity Caves | Entered Factory 17908 | -4/Factory | Accompanied by 2 allies 17908 | -4/Factory | Evolved 2 slots: Propulsion x1, Utility x1 18045 | -4/Factory | Identified exit to Upper Caves 18048 | -4/Factory | Found Quantum Capacitor 18375 | -4/Factory | X0-1V1 sent you to a vault 18434 | -4/Factory | Lost 3 allies 18450 | -4/Factory | Discovered new exit (range 14) 18940 | -4/Factory | X0-1V1 added 0b10 threat records associated with you (minor) 19059 | -4/Factory | X0-1V1 activates XOMVISION 19084 | -4/Factory | X0-1V1 sent allied Lightning (x1) 19158 | -4/Factory | First assault squad dispatched 19257 | -4/Factory | Found Prototype Hackware 19257 | -4/Factory | Identified Exp. Hacking Suite 19299 | -4/Factory | Entered Upper Caves 19299 | -4/Upper Caves | Accompanied by 1 ally 19379 | -4/Upper Caves | Attracted the attention of an 0b10 checkpoint 19400 | -4/Upper Caves | Identified exit to Upper Caves 19616 | -4/Upper Caves | Entered another Upper Caves area 19632 | -4/Upper Caves | X0-1V1 activates XOMVISION 19680 | -4/Upper Caves | X0-1V1 sent allied H-81 Overseer (x1) 19909 | -4/Upper Caves | Discovered new exit (range 7) 19926 | -4/Upper Caves | Entered Warlord 19983 | -4/Warlord | System corruption cleaned by Quarantine Array 20624 | -4/Warlord | Met Warlord 20649 | -4/Warlord | Warlord's base attacked by MAIN.C 20665 | -4/Warlord | Identified exit to Proximity Caves 20665 | -4/Warlord | X0-1V1 revealed exit location to -3/Proximity Caves 20742 | -4/Warlord | Found Prototype Energy Cannon 20995 | -4/Warlord | Found Prototype Reactor 20995 | -4/Warlord | Identified Vortex Chain Reactor 20999 | -4/Warlord | Warlord forces counterattacked 21000 | -4/Warlord | Found Prototype Processor 21000 | -4/Warlord | Identified Exp. Targeting Computer 21009 | -4/Warlord | Found Prototype Processor 21009 | -4/Warlord | Identified Exp. Core Analyzer 21014 | -4/Warlord | Found Prototype Hackware 21014 | -4/Warlord | Identified System Mapper 21166 | -4/Warlord | Opened side exit 21258 | -4/Warlord | Spotted Striker 21258 | -4/Warlord | Spotted Striker 21263 | -4/Warlord | Entered Proximity Caves 21263 | -3/Proximity Caves | Identified Vortex Cannon 21277 | -3/Proximity Caves | Destroyed 11 combat bots 21437 | -3/Proximity Caves | X0-1V1 sent hostile Thug (x4) 21449 | -3/Proximity Caves | X0-1V1 sent allied H-81 Overseer (x1) 21818 | -3/Proximity Caves | Identified exit to Research 21818 | -3/Proximity Caves | X0-1V1 revealed exit location to -3/Research 21892 | -3/Proximity Caves | Entered Research 21892 | -3/Research | Evolved 2 slots: Power x1, Propulsion x1 21893 | -3/Research | Identified exit to Testing 21977 | -3/Research | Identified exit to Research 22092 | -3/Research | Revision forces began assault on 0b10 22166 | -3/Research | Met up with Revision 17++ 22221 | -3/Research | Spotted B-86 Titan 22592 | -3/Research | Research terminal network offline 22933 | -3/Research | X0-1V1 sent hostile P-80 Master (x3) 23012 | -3/Research | Entered another Research area 23012 | -2/Research | Warlord forces began assault on 0b10 23012 | -2/Research | Evolved 2 slots: Utility x2 23037 | -2/Research | Distinguished unit "Magnificent Bastards" dispatched to help 23037 | -2/Research | Distinguished unit "Lucky Slug" dispatched to help 23122 | -2/Research | Research machine network offline 23176 | -2/Research | Met up with Warlord 23305 | -2/Research | Spotted Striker 23355 | -2/Research | Lost 4 allies 23445 | -2/Research | Discovered new exit (range 13) 23447 | -2/Research | Warlord destroyed during the assault 23583 | -2/Research | Borebot progress halted 23650 | -2/Research | X0-1V1 announced a LAN party 23697 | -2/Research | Entered Access 23697 | -1/Access | Evolved 2 slots: Utility x2 23726 | -1/Access | Identified exit to Command 23799 | -1/Access | X0-1V1 mutated your Utility slot to Weapon slot 24103 | -1/Access | Build established: Scavenger-Executioner 24157 | -1/Access | X0-1V1 whisked you away to safety 24454 | -1/Access | Entered Command 24599 | -1/Command | X0-1V1 sent you to a vault 24863 | -1/Command | Spotted Combat Programmer 24864 | -1/Command | Spotted Combat Programmer 24865 | -1/Command | Spotted M Guard 24866 | -1/Command | Spotted M Guard 24875 | -1/Command | Destroyed Combat Programmer 24896 | -1/Command | Destroyed Combat Programmer 24965 | -1/Command | Destroyed M Guard 24988 | -1/Command | Destroyed M Guard 24988 | -1/Command | All MAIN.C guards destroyed 25019 | -1/Command | Found Corrupted Prototype Protection 25019 | -1/Command | Identified Hvy. Regenerative Plating 25040 | -1/Command | System corruption reached 10% 25058 | -1/Command | Found Corrupted Prototype Device 25059 | -1/Command | Identified AEGIS Remote Shield 25060 | -1/Command | System corruption reached 30% 25103 | -1/Command | Identified exit to Surface 25103 | -1/Command | X0-1V1 revealed exit location to -0/Surface 25165 | -1/Command | X0-1V1 turns hostiles against one another 25213 | -1/Command | Found Corrupted Prototype Reactor 25216 | -1/Command | Found Corrupted Prototype Reactor 25218 | -1/Command | Lost 4 parts (1n3w) 25218 | -1/Command | Identified XL Autogun Array 25226 | -1/Command | X0-1V1 vaporized surrounding terrain (radius 17) 25229 | -1/Command | Found Corrupted Hvy. Regenerative Plating 25232 | -1/Command | Found Corrupted Prototype Reactor 25291 | -1/Command | X0-1V1 sent hostile G-67 Veteran (x3) 25341 | -1/Command | Met MAIN.C 25349 | -1/Command | 0b10 Conduit disabled 25368 | -1/Command | Destroyed MAIN.C Shell 25368 | -1/Command | MAIN.C activated Command garrisons 25386 | -1/Command | Destroyed MAIN.C 25404 | -1/Command | Identified Zero-point Reactor (x3) 25404 | -1/Command | Identified Transdimensional Reconstructor 25404 | -1/Command | Discovered exit to Surface (range 50) 25404 | -1/Command | Discovered exit to Surface (range 86) 25404 | -1/Command | Extracted map data and part IDs from MAIN.C's data core 25407 | -1/Command | Found Zero-point Reactor 25414 | -1/Command | X0-1V1 sent allied Y-72 Warden (x3) 25481 | -1/Command | Identified exit to Access_0 25481 | -1/Command | X0-1V1 revealed exit location to -1/Access_0 25494 | -1/Command | Phase Generator disabled 25547 | -1/Command | Spotted B-99 Colossus 25611 | -1/Command | Lost 3 allies 25663 | -1/Command | X0-1V1 activates XOMVISION 25691 | -1/Command | Build established: Scavenger-Tank 25717 | -1/Command | X0-1V1 sent you into danger 26119 | -1/Command | Found Corrupted Cld. Nova Cannon 26225 | -1/Command | X0-1V1 vaporized surrounding terrain (radius 21) 26294 | -1/Command | X0-1V1 sent hostile H-77 Assassin (x3) 26423 | -1/Command | Found Singularity Reactor 26429 | -1/Command | Found Vortex Chain Reactor 26437 | -1/Command | Found Exp. System Purifier 26442 | -1/Command | Found Exp. Force Field 26474 | -1/Command | Build established: Scavenger-Executioner 26637 | -1/Command | Found Exp. Core Analyzer 26906 | -1/Command | X0-1V1 mutated your Propulsion slot to Power slot 27065 | -1/Command | X0-1V1 mutated your Weapon slot to Utility slot 27077 | -1/Command | X0-1V1 vaporized surrounding terrain (radius 15) 27294 | -1/Command | Found Exp. Weapon Cycler 27611 | -1/Command | Build established: Generator-Tank 27890 | -1/Command | Found Spectral Analyzer 27896 | -1/Command | Warped through subspace to slip node 27907 | -1/Command | Entered Access_0 27909 | -1/Access_0 | Met Architect 27926 | -1/Access_0 | Destroyed A8 27929 | -1/Access_0 | Architect warped through subspace 27970 | -1/Access_0 | Architect warped through subspace 28012 | -1/Access_0 | Architect warped through subspace 28048 | -1/Access_0 | Architect warped through subspace 28092 | -1/Access_0 | Architect warped through subspace 28129 | -1/Access_0 | Subspace Access Node disabled 28139 | -1/Access_0 | Architect warped through subspace 28158 | -1/Access_0 | X0-1V1 revealed exit location to -0/Surface 28170 | -1/Access_0 | Architect warped through subspace 28173 | -1/Access_0 | X0-1V1 sent hostile Thug (x2) 28194 | -1/Access_0 | Architect warped through subspace 28225 | -1/Access_0 | Subspace Access Node disabled 28234 | -1/Access_0 | Architect warped through subspace 28257 | -1/Access_0 | Architect warped through subspace 28276 | -1/Access_0 | A6 warped into view 28282 | -1/Access_0 | Core integrity fell below 50% 28286 | -1/Access_0 | Destroyed A6 28294 | -1/Access_0 | Architect warped through subspace 28316 | -1/Access_0 | Architect warped through subspace 28341 | -1/Access_0 | Architect warped through subspace 28362 | -1/Access_0 | Architect warped through subspace 28387 | -1/Access_0 | Lost 4 parts (1p2u1w) 28406 | -1/Access_0 | Architect warped through subspace 28432 | -1/Access_0 | Lost 3 parts (1n2w) 28450 | -1/Access_0 | Architect warped through subspace 28453 | -1/Access_0 | X0-1V1 mutated your Weapon slot to Propulsion slot 28488 | -1/Access_0 | Architect warped through subspace 28506 | -1/Access_0 | Architect warped through subspace 28539 | -1/Access_0 | Architect warped through subspace 28564 | -1/Access_0 | Core integrity fell below 20% 28571 | -1/Access_0 | Architect warped through subspace 28585 | -1/Access_0 | Architect warped through subspace 28616 | -1/Access_0 | Architect warped through subspace 28650 | -1/Access_0 | Found Exp. Thermal Shield 28652 | -1/Access_0 | Architect warped through subspace 28699 | -1/Access_0 | Architect warped through subspace 28710 | -1/Access_0 | Architect warped through subspace 28748 | -1/Access_0 | Lost 6 parts (1p2n2u1w) 28770 | -1/Access_0 | X0-1V1 whisked you away to safety 28799 | -1/Access_0 | Destroyed by Architect with Modified Sigix Sheargun Last Messages --------------- 28767_ HV Slug penetrates Earth. 28767_ HV Slug penetrates Architect. 28767_ HV Slug penetrates Earth. 28769_ HV Slug penetrates Architect. 28769_ HV Slug penetrates Earth. 28769_ Penetrated by Quantum Shear. 28769_ Quantum Shear penetrates Wall. 28770_ X0-1V1: "You need a change of scenery." 28774_ Ended siege mode. 28778_ X0-1V1 causes your matter storage to temporarily balloon in size. (+700 matter capacity) 28790_ Quantum Shear penetrates Wall. 28795_ Penetrated by Quantum Shear. 28797_ Quantum Shear penetrates Wall. 28799_ HV Slug penetrates Architect. 28799_ Architect suffers critical hit (Destroy). 28799_ Exp. Force Field destroyed. 28799_ Penetrated by Quantum Shear. 28799_ X0-1V1 bursts into laughter! Map ----- +----------------------------------------------------+ | ?????????????????????????????????????????????????? | | ?????????????????????????????????????????????????? | | ?????????????????????????????????????????????????? | | ?????????????????????????????????????????????????? | | ?????????????????????????????????????????????????? | | ?????????????????????????????????????????????????? | | ?????????????????????????????????????????????????? | | ?????????????????????????????????????????????????? | | ?????????????????????????????????????????????????? | | ?????????????????????????????????????????????????? | | ?????????????????????????????????????????????????? | | ?????????????????????????????????????????????????? | | ?????????????????????????????????????????????????? | | ?????????????????????????????????????????????????? | | ?????????????????????????????????????????????????? | | ??????????????????????????###????????????????????? | | ?????????????????????????? ##???????????????????? | | ?????????????????????????? ???????????????????? | | ?????????????????###?????? #???????????????????? | | ????????????????## #??????# #???????????????????? | | ????????????????# #??????# #???????????????????? | | ????????????????# ##?????# #???????????????????? | | ????????????????# ####### #???????????????????? | | ?????????????#### ;;;#;# #???????????????????? | | ???????????### ;; #???????????????????? | | ???????????#; @ #???????????????????? | | ?# ;;; #;;######???????????????????? | | # % 0 ###???????????????????????????? | | ## ## "" ##?????????????????????????????? | | ??????## ???# ?#?????????????????????????????? | | ???????##???? ##????????????????????????????? | | ??????????? #????????????????????????????? | | ??? ?????# #????????????????????????????? | | ??? ???### ## #?????????????????????? | | ??? ?## #??????????????????????? | | ??# ?# #????????????????????????????????? | | #?? ?## ##### #????????????????????????????????? | | ??? ??###???# #????????????????????????????????? | | ??? #???????# #????????????????????????????????? | | #?# ?#??????# ##???????????????????????????????? | | ?# ##??????# ### ????????????????????????????? | | # ###?#??# ????????????????????????????? | | ? ? #?##### ????????????????????????????? | | ## ##### ?????????????????????????????? | | ### ## ???????????????????????????????? | | ##? #???????????????????????????????? | | #### ##??#?#????????????????????????????? | | #### #?#?#??##???????????????????????????? | | #?#????#?# ?????????????????????????? | | ##??####????????????????????????????? | +----------------------------------------------------+ Best States ------------- Heat Dissipation 186 Energy Generation 129 Energy Capacity 2250 Matter Stores 1000 Matter Capacity 1500 Sight Range 27 Terrain Scan Range 18 Terrain Scan Density 210 Jamming Range 14 Base Temperature (-) 200 EM Shielding 3 Armor Coverage 1200 Resistance: KI 37 Resistance: TH 30 Resistance: EM 20 Weapon Cycling 30 Phase Shifting 20 Evasion (%) 60 Targeting Accuracy 12 Core Analysis 8 Recoil Reduction 6 Offensive Hacking 20 Item Schematics ----------------- Hcp. Storage Unit | -10/Materials | Hacked Assault Drone Bay | -5/Zhirov | Free Exp. Heat Sink | -5/Zhirov | Free Exp. Optical Array | -5/Zhirov | Free Imp. Arc Thrower | -5/Zhirov | Free Robot Schematics ------------------ None Fabricated ------------ Nothing Repaired ---------- Nothing Studied --------- Gatling Laser | -7/Factory | Hacked Quantum Reactor | -3/Research | Hacked HERF Cannon | -3/Research | Hacked Alien Tech Used ----------------- Integrated Reactor Transdimensional Reconstructor Achievements -------------- None Challenges ------------ None Game ------ Seed SchematicScanDatajack Manual? 0 Play Time 05:19:59 Cumulative 518.2 hours Start 2026.07.20 @ 18:37:50 End 2026.07.21 @ 00:20:13 Sessions 1 Manual Loads 0 Difficulty Rogue Special Mode None Game No. 216 Rogue 216 Adventurer 0 Explorer 0 Win Type - Total 41 Types 4/9/15/0/0/1/9/0/1/2 Lore% 86 Gallery% 73 Achievement% 71 Wizard Run 0 Options --------- Layout 1 ASCII 0 Keyboard 0 Movement Arrows Keybinds 0 Fullscreen 2 Font 24/Terminus Map View 50x35 Zoom Use 0% Tactical HUD 1 Map Filters NONE Filters NONE Steam 1 RUN: 88a2ee7a-a3ad-440f-9cd8-f5384d652d6c